Workbook

Sheet Cotation
A1: Miels | B1: Cond. | C1: Qte de carton | D1: Nbre d'unité | E1: Prix unitaire | F1: Prix au carton | G1: Total | H1: Prix Achat Unitaire | I1: Marge Brute | J1: Poids Brute en g | K1: Prix U trans. Inlus | M1: Code Client | N1: N° Commande | O1: Date | P1: Commercial | Q1: Mode de Paiement | R1: Code transport
A2: Lavande | B2: Pot de 250g | C2: 1 | D2: =IF(OR(A2="",B2="",C2=""),"",(C2*12)) -> 12 | E2: =(IF(OR(A2="",B2="",C2=""),"",IF($C$34=1,K2+INDIRECT($A2&"!D"&MATCH(Cotation!$B2,Cond,0)+5),IF($C$34<6,K2+INDIRECT($A2&"!G"&MATCH(Cotation!$B2,Cond,0)+5),IF($C$34<11,K2+INDIRECT($A2&"!J"&MATCH(Cotation!$B2,Cond,0)+5),IF($C$34>=11,K2+INDIRECT($A2&"!M"&MATCH(Cotation!$B2,Cond,0)+5))))))) -> 1.946904762 | F2: =IF(OR(A2="",B2="",C2=""),"",E2*12) -> 23.36285714 | G2: =IF(OR(A2="",B2="",C2=""),"",(C2*F2)) -> 23.36285714 | H2: =(IF(OR(A2="",B2="",C2=""),"",IF($C$34="","",IF($C$34=1,K2+INDIRECT($A2&"!b"&MATCH(Cotation!$B2,Cond,0)+5),IF($C$34<6,K2+INDIRECT($A2&"!B"&MATCH(Cotation!$B2,Cond,0)+5),IF($C$34<11,K2+INDIRECT($A2&"!B"&MATCH(Cotation!$B2,Cond,0)+5),IF($C$34>=11,K2+INDIRECT($A2&"!B"&MATCH(Cotation!$B2,Cond,0)+5)))))))) -> 1.706904762 | I2: =IF(H2="","",G2-(H2*D2)) -> 2.88 | J2: =(IF(OR(A2="",B2="",C2=""),"",IF(B2="Pot de 250g",(250*D2),IF(B2="Pot de 500g",(500*D2),IF(B2="Pot de 1kg",(1000*D2),""))))) -> 3000 | K2: =(IF(OR(A2="",B2="",C2=""),"",((J2/1000)*$K$34)/D2)) -> 0.1069047619 | N2: CT000002 | O2: =TODAY() -> 2014-01-24 | P2: Eric | Q2: Virement | R2: 150
A3: Toutes_fleurs | B3: Pot de 250g | C3: 1 | D3: =IF(OR(A3="",B3="",C3=""),"",(C3*12)) -> 12 | E3: =(IF(OR(A3="",B3="",C3=""),"",IF($C$34=1,K3+INDIRECT($A3&"!D"&MATCH(Cotation!$B3,Cond,0)+5),IF($C$34<6,K3+INDIRECT($A3&"!G"&MATCH(Cotation!$B3,Cond,0)+5),IF($C$34<11,K3+INDIRECT($A3&"!J"&MATCH(Cotation!$B3,Cond,0)+5),IF($C$34>=11,K3+INDIRECT($A3&"!M"&MATCH(Cotation!$B3,Cond,0)+5))))))) -> 1.981404762 | F3: =IF(OR(A3="",B3="",C3=""),"",E3*12) -> 23.77685714 | G3: =IF(OR(A3="",B3="",C3=""),"",(C3*F3)) -> 23.77685714 | H3: =(IF(OR(A3="",B3="",C3=""),"",IF($C$34="","",IF($C$34=1,K3+INDIRECT($A3&"!b"&MATCH(Cotation!$B3,Cond,0)+5),IF($C$34<6,K3+INDIRECT($A3&"!B"&MATCH(Cotation!$B3,Cond,0)+5),IF($C$34<11,K3+INDIRECT($A3&"!B"&MATCH(Cotation!$B3,Cond,0)+5),IF($C$34>=11,K3+INDIRECT($A3&"!B"&MATCH(Cotation!$B3,Cond,0)+5)))))))) -> 1.736904762 | I3: =IF(H3="","",G3-(H3*D3)) -> 2.934 | J3: =(IF(OR(A3="",B3="",C3=""),"",IF(B3="Pot de 250g",(250*D3),IF(B3="Pot de 500g",(500*D3),IF(B3="Pot de 1kg",(1000*D3),""))))) -> 3000 | K3: =(IF(OR(A3="",B3="",C3="",$M$13=""),"",((J3/1000)*$K$34)/D3)) -> 0.1069047619
A4: Romarin | B4: Pot de 250g | C4: 1 | D4: =IF(OR(A4="",B4="",C4=""),"",(C4*12)) -> 12 | E4: =(IF(OR(A4="",B4="",C4=""),"",IF($C$34=1,K4+INDIRECT($A4&"!D"&MATCH(Cotation!$B4,Cond,0)+5),IF($C$34<6,K4+INDIRECT($A4&"!G"&MATCH(Cotation!$B4,Cond,0)+5),IF($C$34<11,K4+INDIRECT($A4&"!J"&MATCH(Cotation!$B4,Cond,0)+5),IF($C$34>=11,K4+INDIRECT($A4&"!M"&MATCH(Cotation!$B4,Cond,0)+5))))))) -> 1.946904762 | F4: =IF(OR(A4="",B4="",C4=""),"",E4*12) -> 23.36285714 | G4: =IF(OR(A4="",B4="",C4=""),"",(C4*F4)) -> 23.36285714 | H4: =(IF(OR(A4="",B4="",C4=""),"",IF($C$34="","",IF($C$34=1,K4+INDIRECT($A4&"!b"&MATCH(Cotation!$B4,Cond,0)+5),IF($C$34<6,K4+INDIRECT($A4&"!B"&MATCH(Cotation!$B4,Cond,0)+5),IF($C$34<11,K4+INDIRECT($A4&"!B"&MATCH(Cotation!$B4,Cond,0)+5),IF($C$34>=11,K4+INDIRECT($A4&"!B"&MATCH(Cotation!$B4,Cond,0)+5)))))))) -> 1.706904762 | I4: 2.88 | J4: 3000 | K4: 0.1069047619
A5: Thym | B5: Pot de 250g | C5: 1 | D5: 12 | E5: =(IF(OR(A5="",B5="",C5=""),"",IF($C$34=1,K5+INDIRECT($A5&"!D"&MATCH(Cotation!$B5,Cond,0)+5),IF($C$34<6,K5+INDIRECT($A5&"!G"&MATCH(Cotation!$B5,Cond,0)+5),IF($C$34<11,K5+INDIRECT($A5&"!J"&MATCH(Cotation!$B5,Cond,0)+5),IF($C$34>=11,K5+INDIRECT($A5&"!M"&MATCH(Cotation!$B5,Cond,0)+5))))))) -> 1.946904762 | F5: =IF(OR(A5="",B5="",C5=""),"",E5*12) -> 23.36285714 | G5: =IF(OR(A5="",B5="",C5=""),"",(C5*F5)) -> 23.36285714 | H5: =(IF(OR(A5="",B5="",C5=""),"",IF($C$34="","",IF($C$34=1,K5+INDIRECT($A5&"!b"&MATCH(Cotation!$B5,Cond,0)+5),IF($C$34<6,K5+INDIRECT($A5&"!B"&MATCH(Cotation!$B5,Cond,0)+5),IF($C$34<11,K5+INDIRECT($A5&"!B"&MATCH(Cotation!$B5,Cond,0)+5),IF($C$34>=11,K5+INDIRECT($A5&"!B"&MATCH(Cotation!$B5,Cond,0)+5)))))))) -> 1.706904762 | I5: 2.88 | J5: 3000 | K5: 0.1069047619
A6: Oranger | B6: Pot de 250g | C6: 1 | D6: 12 | E6: =(IF(OR(A6="",B6="",C6=""),"",IF($C$34=1,K6+INDIRECT($A6&"!D"&MATCH(Cotation!$B6,Cond,0)+5),IF($C$34<6,K6+INDIRECT($A6&"!G"&MATCH(Cotation!$B6,Cond,0)+5),IF($C$34<11,K6+INDIRECT($A6&"!J"&MATCH(Cotation!$B6,Cond,0)+5),IF($C$34>=11,K6+INDIRECT($A6&"!M"&MATCH(Cotation!$B6,Cond,0)+5))))))) -> 2.165404762 | F6: 25.98485714 | G6: 25.98485714 | H6: =(IF(OR(A6="",B6="",C6=""),"",IF($C$34="","",IF($C$34=1,K6+INDIRECT($A6&"!b"&MATCH(Cotation!$B6,Cond,0)+5),IF($C$34<6,K6+INDIRECT($A6&"!B"&MATCH(Cotation!$B6,Cond,0)+5),IF($C$34<11,K6+INDIRECT($A6&"!B"&MATCH(Cotation!$B6,Cond,0)+5),IF($C$34>=11,K6+INDIRECT($A6&"!B"&MATCH(Cotation!$B6,Cond,0)+5)))))))) -> 1.896904762 | I6: 3.222 | J6: 3000 | K6: 0.1069047619
A7: Eucalyptus | B7: Pot de 250g | C7: 1 | D7: 12 | E7: =(IF(OR(A7="",B7="",C7=""),"",IF($C$34=1,K7+INDIRECT($A7&"!D"&MATCH(Cotation!$B7,Cond,0)+5),IF($C$34<6,K7+INDIRECT($A7&"!G"&MATCH(Cotation!$B7,Cond,0)+5),IF($C$34<11,K7+INDIRECT($A7&"!J"&MATCH(Cotation!$B7,Cond,0)+5),IF($C$34>=11,K7+INDIRECT($A7&"!M"&MATCH(Cotation!$B7,Cond,0)+5))))))) -> 1.946904762 | F7: 23.36285714 | G7: 23.36285714 | H7: =(IF(OR(A7="",B7="",C7=""),"",IF($C$34="","",IF($C$34=1,K7+INDIRECT($A7&"!b"&MATCH(Cotation!$B7,Cond,0)+5),IF($C$34<6,K7+INDIRECT($A7&"!B"&MATCH(Cotation!$B7,Cond,0)+5),IF($C$34<11,K7+INDIRECT($A7&"!B"&MATCH(Cotation!$B7,Cond,0)+5),IF($C$34>=11,K7+INDIRECT($A7&"!B"&MATCH(Cotation!$B7,Cond,0)+5)))))))) -> 1.706904762 | I7: 2.88 | J7: 3000 | K7: 0.1069047619
A8: Forêt | B8: Pot de 250g | C8: 1 | D8: 12 | E8: =(IF(OR(A8="",B8="",C8=""),"",IF($C$34=1,K8+INDIRECT($A8&"!D"&MATCH(Cotation!$B8,Cond,0)+5),IF($C$34<6,K8+INDIRECT($A8&"!G"&MATCH(Cotation!$B8,Cond,0)+5),IF($C$34<11,K8+INDIRECT($A8&"!J"&MATCH(Cotation!$B8,Cond,0)+5),IF($C$34>=11,K8+INDIRECT($A8&"!M"&MATCH(Cotation!$B8,Cond,0)+5))))))) -> 2.165404762 | F8: 25.98485714 | G8: 25.98485714 | H8: =(IF(OR(A8="",B8="",C8=""),"",IF($C$34="","",IF($C$34=1,K8+INDIRECT($A8&"!b"&MATCH(Cotation!$B8,Cond,0)+5),IF($C$34<6,K8+INDIRECT($A8&"!B"&MATCH(Cotation!$B8,Cond,0)+5),IF($C$34<11,K8+INDIRECT($A8&"!B"&MATCH(Cotation!$B8,Cond,0)+5),IF($C$34>=11,K8+INDIRECT($A8&"!B"&MATCH(Cotation!$B8,Cond,0)+5)))))))) -> 1.896904762 | I8: 3.222 | J8: 3000 | K8: 0.1069047619
A9: Bruyère | B9: Pot de 250g | C9: 1 | D9: 12 | E9: =(IF(OR(A9="",B9="",C9=""),"",IF($C$34=1,K9+INDIRECT($A9&"!D"&MATCH(Cotation!$B9,Cond,0)+5),IF($C$34<6,K9+INDIRECT($A9&"!G"&MATCH(Cotation!$B9,Cond,0)+5),IF($C$34<11,K9+INDIRECT($A9&"!J"&MATCH(Cotation!$B9,Cond,0)+5),IF($C$34>=11,K9+INDIRECT($A9&"!M"&MATCH(Cotation!$B9,Cond,0)+5))))))) -> 1.946904762 | F9: 23.36285714 | G9: 23.36285714 | H9: =(IF(OR(A9="",B9="",C9=""),"",IF($C$34="","",IF($C$34=1,K9+INDIRECT($A9&"!b"&MATCH(Cotation!$B9,Cond,0)+5),IF($C$34<6,K9+INDIRECT($A9&"!B"&MATCH(Cotation!$B9,Cond,0)+5),IF($C$34<11,K9+INDIRECT($A9&"!B"&MATCH(Cotation!$B9,Cond,0)+5),IF($C$34>=11,K9+INDIRECT($A9&"!B"&MATCH(Cotation!$B9,Cond,0)+5)))))))) -> 1.706904762 | I9: 2.88 | J9: 3000 | K9: 0.1069047619 | M9: NOM
A10: Pyrénnées | B10: Pot de 250g | C10: 1 | D10: 12 | E10: =(IF(OR(A10="",B10="",C10=""),"",IF($C$34=1,K10+INDIRECT($A10&"!D"&MATCH(Cotation!$B10,Cond,0)+5),IF($C$34<6,K10+INDIRECT($A10&"!G"&MATCH(Cotation!$B10,Cond,0)+5),IF($C$34<11,K10+INDIRECT($A10&"!J"&MATCH(Cotation!$B10,Cond,0)+5),IF($C$34>=11,K10+INDIRECT($A10&"!M"&MATCH(Cotation!$B10,Cond,0)+5))))))) -> 2.165404762 | F10: 25.98485714 | G10: 25.98485714 | H10: =(IF(OR(A10="",B10="",C10=""),"",IF($C$34="","",IF($C$34=1,K10+INDIRECT($A10&"!b"&MATCH(Cotation!$B10,Cond,0)+5),IF($C$34<6,K10+INDIRECT($A10&"!B"&MATCH(Cotation!$B10,Cond,0)+5),IF($C$34<11,K10+INDIRECT($A10&"!B"&MATCH(Cotation!$B10,Cond,0)+5),IF($C$34>=11,K10+INDIRECT($A10&"!B"&MATCH(Cotation!$B10,Cond,0)+5)))))))) -> 1.896904762 | I10: 3.222 | J10: 3000 | K10: 0.1069047619
A11: Pommier | B11: Pot de 250g | C11: 1 | D11: 12 | E11: =(IF(OR(A11="",B11="",C11=""),"",IF($C$34=1,K11+INDIRECT($A11&"!D"&MATCH(Cotation!$B11,Cond,0)+5),IF($C$34<6,K11+INDIRECT($A11&"!G"&MATCH(Cotation!$B11,Cond,0)+5),IF($C$34<11,K11+INDIRECT($A11&"!J"&MATCH(Cotation!$B11,Cond,0)+5),IF($C$34>=11,K11+INDIRECT($A11&"!M"&MATCH(Cotation!$B11,Cond,0)+5))))))) -> 2.165404762 | F11: 25.98485714 | G11: 25.98485714 | H11: =(IF(OR(A11="",B11="",C11=""),"",IF($C$34="","",IF($C$34=1,K11+INDIRECT($A11&"!b"&MATCH(Cotation!$B11,Cond,0)+5),IF($C$34<6,K11+INDIRECT($A11&"!B"&MATCH(Cotation!$B11,Cond,0)+5),IF($C$34<11,K11+INDIRECT($A11&"!B"&MATCH(Cotation!$B11,Cond,0)+5),IF($C$34>=11,K11+INDIRECT($A11&"!B"&MATCH(Cotation!$B11,Cond,0)+5)))))))) -> 1.896904762 | I11: 3.222 | J11: 3000 | K11: 0.1069047619
A12: Chataignier | B12: Pot de 250g | C12: 1 | D12: 12 | E12: =(IF(OR(A12="",B12="",C12=""),"",IF($C$34=1,K12+INDIRECT($A12&"!D"&MATCH(Cotation!$B12,Cond,0)+5),IF($C$34<6,K12+INDIRECT($A12&"!G"&MATCH(Cotation!$B12,Cond,0)+5),IF($C$34<11,K12+INDIRECT($A12&"!J"&MATCH(Cotation!$B12,Cond,0)+5),IF($C$34>=11,K12+INDIRECT($A12&"!M"&MATCH(Cotation!$B12,Cond,0)+5))))))) -> 2.165404762 | F12: 25.98485714 | G12: 25.98485714 | H12: =(IF(OR(A12="",B12="",C12=""),"",IF($C$34="","",IF($C$34=1,K12+INDIRECT($A12&"!b"&MATCH(Cotation!$B12,Cond,0)+5),IF($C$34<6,K12+INDIRECT($A12&"!B"&MATCH(Cotation!$B12,Cond,0)+5),IF($C$34<11,K12+INDIRECT($A12&"!B"&MATCH(Cotation!$B12,Cond,0)+5),IF($C$34>=11,K12+INDIRECT($A12&"!B"&MATCH(Cotation!$B12,Cond,0)+5)))))))) -> 1.896904762 | I12: 3.222 | J12: 3000 | K12: 0.1069047619 | M12: TRANSPORT
A13: Amandier | B13: Pot de 250g | C13: 1 | D13: 12 | E13: =(IF(OR(A13="",B13="",C13=""),"",IF($C$34=1,K13+INDIRECT($A13&"!D"&MATCH(Cotation!$B13,Cond,0)+5),IF($C$34<6,K13+INDIRECT($A13&"!G"&MATCH(Cotation!$B13,Cond,0)+5),IF($C$34<11,K13+INDIRECT($A13&"!J"&MATCH(Cotation!$B13,Cond,0)+5),IF($C$34>=11,K13+INDIRECT($A13&"!M"&MATCH(Cotation!$B13,Cond,0)+5))))))) -> 0.1069047619 | F13: 1.282857143 | G13: 1.282857143 | H13: =(IF(OR(A13="",B13="",C13=""),"",IF($C$34="","",IF($C$34=1,K13+INDIRECT($A13&"!b"&MATCH(Cotation!$B13,Cond,0)+5),IF($C$34<6,K13+INDIRECT($A13&"!B"&MATCH(Cotation!$B13,Cond,0)+5),IF($C$34<11,K13+INDIRECT($A13&"!B"&MATCH(Cotation!$B13,Cond,0)+5),IF($C$34>=11,K13+INDIRECT($A13&"!B"&MATCH(Cotation!$B13,Cond,0)+5)))))))) -> 0.1069047619 | I13: 0 | J13: 3000 | K13: 0.1069047619 | M13: =ROUND(INDEX(Port!A:Q,MATCH(R2,Port!C:C,0),MATCH(J34,Port!3:3)),2) -> 17.96
A14: Citronnier | B14: Pot de 250g | C14: 1 | D14: 12 | E14: =(IF(OR(A14="",B14="",C14=""),"",IF($C$34=1,K14+INDIRECT($A14&"!D"&MATCH(Cotation!$B14,Cond,0)+5),IF($C$34<6,K14+INDIRECT($A14&"!G"&MATCH(Cotation!$B14,Cond,0)+5),IF($C$34<11,K14+INDIRECT($A14&"!J"&MATCH(Cotation!$B14,Cond,0)+5),IF($C$34>=11,K14+INDIRECT($A14&"!M"&MATCH(Cotation!$B14,Cond,0)+5))))))) -> 0.1069047619 | F14: 1.282857143 | G14: 1.282857143 | H14: =(IF(OR(A14="",B14="",C14=""),"",IF($C$34="","",IF($C$34=1,K14+INDIRECT($A14&"!b"&MATCH(Cotation!$B14,Cond,0)+5),IF($C$34<6,K14+INDIRECT($A14&"!B"&MATCH(Cotation!$B14,Cond,0)+5),IF($C$34<11,K14+INDIRECT($A14&"!B"&MATCH(Cotation!$B14,Cond,0)+5),IF($C$34>=11,K14+INDIRECT($A14&"!B"&MATCH(Cotation!$B14,Cond,0)+5)))))))) -> 0.1069047619 | I14: 0 | J14: 3000 | K14: 0.1069047619
A15: Néflier | B15: Pot de 250g | C15: 1 | D15: 12 | E15: =(IF(OR(A15="",B15="",C15=""),"",IF($C$34=1,K15+INDIRECT($A15&"!D"&MATCH(Cotation!$B15,Cond,0)+5),IF($C$34<6,K15+INDIRECT($A15&"!G"&MATCH(Cotation!$B15,Cond,0)+5),IF($C$34<11,K15+INDIRECT($A15&"!J"&MATCH(Cotation!$B15,Cond,0)+5),IF($C$34>=11,K15+INDIRECT($A15&"!M"&MATCH(Cotation!$B15,Cond,0)+5))))))) -> 0.1069047619 | F15: 1.282857143 | G15: 1.282857143 | H15: =(IF(OR(A15="",B15="",C15=""),"",IF($C$34="","",IF($C$34=1,K15+INDIRECT($A15&"!b"&MATCH(Cotation!$B15,Cond,0)+5),IF($C$34<6,K15+INDIRECT($A15&"!B"&MATCH(Cotation!$B15,Cond,0)+5),IF($C$34<11,K15+INDIRECT($A15&"!B"&MATCH(Cotation!$B15,Cond,0)+5),IF($C$34>=11,K15+INDIRECT($A15&"!B"&MATCH(Cotation!$B15,Cond,0)+5)))))))) -> 0.1069047619 | I15: 0 | J15: 3000 | K15: 0.1069047619
E16: =(IF(OR(A16="",B16="",C16=""),"",IF($C$34=1,K16+INDIRECT($A16&"!D"&MATCH(Cotation!$B16,Cond,0)+5),IF($C$34<6,K16+INDIRECT($A16&"!G"&MATCH(Cotation!$B16,Cond,0)+5),IF($C$34<11,K16+INDIRECT($A16&"!J"&MATCH(Cotation!$B16,Cond,0)+5),IF($C$34>=11,K16+INDIRECT($A16&"!M"&MATCH(Cotation!$B16,Cond,0)+5))))))) ->  | H16: =(IF(OR(A16="",B16="",C16=""),"",IF($C$34="","",IF($C$34=1,K16+INDIRECT($A16&"!b"&MATCH(Cotation!$B16,Cond,0)+5),IF($C$34<6,K16+INDIRECT($A16&"!B"&MATCH(Cotation!$B16,Cond,0)+5),IF($C$34<11,K16+INDIRECT($A16&"!B"&MATCH(Cotation!$B16,Cond,0)+5),IF($C$34>=11,K16+INDIRECT($A16&"!B"&MATCH(Cotation!$B16,Cond,0)+5)))))))) -> 
E17: =(IF(OR(A17="",B17="",C17=""),"",IF($C$34=1,K17+INDIRECT($A17&"!D"&MATCH(Cotation!$B17,Cond,0)+5),IF($C$34<6,K17+INDIRECT($A17&"!G"&MATCH(Cotation!$B17,Cond,0)+5),IF($C$34<11,K17+INDIRECT($A17&"!J"&MATCH(Cotation!$B17,Cond,0)+5),IF($C$34>=11,K17+INDIRECT($A17&"!M"&MATCH(Cotation!$B17,Cond,0)+5))))))) ->  | H17: =(IF(OR(A17="",B17="",C17=""),"",IF($C$34="","",IF($C$34=1,K17+INDIRECT($A17&"!b"&MATCH(Cotation!$B17,Cond,0)+5),IF($C$34<6,K17+INDIRECT($A17&"!B"&MATCH(Cotation!$B17,Cond,0)+5),IF($C$34<11,K17+INDIRECT($A17&"!B"&MATCH(Cotation!$B17,Cond,0)+5),IF($C$34>=11,K17+INDIRECT($A17&"!B"&MATCH(Cotation!$B17,Cond,0)+5)))))))) -> 
E18: =(IF(OR(A18="",B18="",C18=""),"",IF($C$34=1,K18+INDIRECT($A18&"!D"&MATCH(Cotation!$B18,Cond,0)+5),IF($C$34<6,K18+INDIRECT($A18&"!G"&MATCH(Cotation!$B18,Cond,0)+5),IF($C$34<11,K18+INDIRECT($A18&"!J"&MATCH(Cotation!$B18,Cond,0)+5),IF($C$34>=11,K18+INDIRECT($A18&"!M"&MATCH(Cotation!$B18,Cond,0)+5))))))) ->  | H18: =(IF(OR(A18="",B18="",C18=""),"",IF($C$34="","",IF($C$34=1,K18+INDIRECT($A18&"!b"&MATCH(Cotation!$B18,Cond,0)+5),IF($C$34<6,K18+INDIRECT($A18&"!B"&MATCH(Cotation!$B18,Cond,0)+5),IF($C$34<11,K18+INDIRECT($A18&"!B"&MATCH(Cotation!$B18,Cond,0)+5),IF($C$34>=11,K18+INDIRECT($A18&"!B"&MATCH(Cotation!$B18,Cond,0)+5)))))))) -> 
E19: =(IF(OR(A19="",B19="",C19=""),"",IF($C$34=1,K19+INDIRECT($A19&"!D"&MATCH(Cotation!$B19,Cond,0)+5),IF($C$34<6,K19+INDIRECT($A19&"!G"&MATCH(Cotation!$B19,Cond,0)+5),IF($C$34<11,K19+INDIRECT($A19&"!J"&MATCH(Cotation!$B19,Cond,0)+5),IF($C$34>=11,K19+INDIRECT($A19&"!M"&MATCH(Cotation!$B19,Cond,0)+5))))))) ->  | H19: =(IF(OR(A19="",B19="",C19=""),"",IF($C$34="","",IF($C$34=1,K19+INDIRECT($A19&"!b"&MATCH(Cotation!$B19,Cond,0)+5),IF($C$34<6,K19+INDIRECT($A19&"!B"&MATCH(Cotation!$B19,Cond,0)+5),IF($C$34<11,K19+INDIRECT($A19&"!B"&MATCH(Cotation!$B19,Cond,0)+5),IF($C$34>=11,K19+INDIRECT($A19&"!B"&MATCH(Cotation!$B19,Cond,0)+5)))))))) -> 
E20: =(IF(OR(A20="",B20="",C20=""),"",IF($C$34=1,K20+INDIRECT($A20&"!D"&MATCH(Cotation!$B20,Cond,0)+5),IF($C$34<6,K20+INDIRECT($A20&"!G"&MATCH(Cotation!$B20,Cond,0)+5),IF($C$34<11,K20+INDIRECT($A20&"!J"&MATCH(Cotation!$B20,Cond,0)+5),IF($C$34>=11,K20+INDIRECT($A20&"!M"&MATCH(Cotation!$B20,Cond,0)+5))))))) ->  | H20: =(IF(OR(A20="",B20="",C20=""),"",IF($C$34="","",IF($C$34=1,K20+INDIRECT($A20&"!b"&MATCH(Cotation!$B20,Cond,0)+5),IF($C$34<6,K20+INDIRECT($A20&"!B"&MATCH(Cotation!$B20,Cond,0)+5),IF($C$34<11,K20+INDIRECT($A20&"!B"&MATCH(Cotation!$B20,Cond,0)+5),IF($C$34>=11,K20+INDIRECT($A20&"!B"&MATCH(Cotation!$B20,Cond,0)+5)))))))) -> 
E21: =(IF(OR(A21="",B21="",C21=""),"",IF($C$34=1,K21+INDIRECT($A21&"!D"&MATCH(Cotation!$B21,Cond,0)+5),IF($C$34<6,K21+INDIRECT($A21&"!G"&MATCH(Cotation!$B21,Cond,0)+5),IF($C$34<11,K21+INDIRECT($A21&"!J"&MATCH(Cotation!$B21,Cond,0)+5),IF($C$34>=11,K21+INDIRECT($A21&"!M"&MATCH(Cotation!$B21,Cond,0)+5))))))) ->  | H21: =(IF(OR(A21="",B21="",C21=""),"",IF($C$34="","",IF($C$34=1,K21+INDIRECT($A21&"!b"&MATCH(Cotation!$B21,Cond,0)+5),IF($C$34<6,K21+INDIRECT($A21&"!B"&MATCH(Cotation!$B21,Cond,0)+5),IF($C$34<11,K21+INDIRECT($A21&"!B"&MATCH(Cotation!$B21,Cond,0)+5),IF($C$34>=11,K21+INDIRECT($A21&"!B"&MATCH(Cotation!$B21,Cond,0)+5)))))))) -> 
E22: =(IF(OR(A22="",B22="",C22=""),"",IF($C$34=1,K22+INDIRECT($A22&"!D"&MATCH(Cotation!$B22,Cond,0)+5),IF($C$34<6,K22+INDIRECT($A22&"!G"&MATCH(Cotation!$B22,Cond,0)+5),IF($C$34<11,K22+INDIRECT($A22&"!J"&MATCH(Cotation!$B22,Cond,0)+5),IF($C$34>=11,K22+INDIRECT($A22&"!M"&MATCH(Cotation!$B22,Cond,0)+5))))))) ->  | H22: =(IF(OR(A22="",B22="",C22=""),"",IF($C$34="","",IF($C$34=1,K22+INDIRECT($A22&"!b"&MATCH(Cotation!$B22,Cond,0)+5),IF($C$34<6,K22+INDIRECT($A22&"!B"&MATCH(Cotation!$B22,Cond,0)+5),IF($C$34<11,K22+INDIRECT($A22&"!B"&MATCH(Cotation!$B22,Cond,0)+5),IF($C$34>=11,K22+INDIRECT($A22&"!B"&MATCH(Cotation!$B22,Cond,0)+5)))))))) -> 
E23: =(IF(OR(A23="",B23="",C23=""),"",IF($C$34=1,K23+INDIRECT($A23&"!D"&MATCH(Cotation!$B23,Cond,0)+5),IF($C$34<6,K23+INDIRECT($A23&"!G"&MATCH(Cotation!$B23,Cond,0)+5),IF($C$34<11,K23+INDIRECT($A23&"!J"&MATCH(Cotation!$B23,Cond,0)+5),IF($C$34>=11,K23+INDIRECT($A23&"!M"&MATCH(Cotation!$B23,Cond,0)+5))))))) ->  | H23: =(IF(OR(A23="",B23="",C23=""),"",IF($C$34="","",IF($C$34=1,K23+INDIRECT($A23&"!b"&MATCH(Cotation!$B23,Cond,0)+5),IF($C$34<6,K23+INDIRECT($A23&"!B"&MATCH(Cotation!$B23,Cond,0)+5),IF($C$34<11,K23+INDIRECT($A23&"!B"&MATCH(Cotation!$B23,Cond,0)+5),IF($C$34>=11,K23+INDIRECT($A23&"!B"&MATCH(Cotation!$B23,Cond,0)+5)))))))) -> 
E24: =(IF(OR(A24="",B24="",C24=""),"",IF($C$34=1,K24+INDIRECT($A24&"!D"&MATCH(Cotation!$B24,Cond,0)+5),IF($C$34<6,K24+INDIRECT($A24&"!G"&MATCH(Cotation!$B24,Cond,0)+5),IF($C$34<11,K24+INDIRECT($A24&"!J"&MATCH(Cotation!$B24,Cond,0)+5),IF($C$34>=11,K24+INDIRECT($A24&"!M"&MATCH(Cotation!$B24,Cond,0)+5))))))) ->  | H24: =(IF(OR(A24="",B24="",C24=""),"",IF($C$34="","",IF($C$34=1,K24+INDIRECT($A24&"!b"&MATCH(Cotation!$B24,Cond,0)+5),IF($C$34<6,K24+INDIRECT($A24&"!B"&MATCH(Cotation!$B24,Cond,0)+5),IF($C$34<11,K24+INDIRECT($A24&"!B"&MATCH(Cotation!$B24,Cond,0)+5),IF($C$34>=11,K24+INDIRECT($A24&"!B"&MATCH(Cotation!$B24,Cond,0)+5)))))))) -> 
E25: =(IF(OR(A25="",B25="",C25=""),"",IF($C$34=1,K25+INDIRECT($A25&"!D"&MATCH(Cotation!$B25,Cond,0)+5),IF($C$34<6,K25+INDIRECT($A25&"!G"&MATCH(Cotation!$B25,Cond,0)+5),IF($C$34<11,K25+INDIRECT($A25&"!J"&MATCH(Cotation!$B25,Cond,0)+5),IF($C$34>=11,K25+INDIRECT($A25&"!M"&MATCH(Cotation!$B25,Cond,0)+5))))))) ->  | H25: =(IF(OR(A25="",B25="",C25=""),"",IF($C$34="","",IF($C$34=1,K25+INDIRECT($A25&"!b"&MATCH(Cotation!$B25,Cond,0)+5),IF($C$34<6,K25+INDIRECT($A25&"!B"&MATCH(Cotation!$B25,Cond,0)+5),IF($C$34<11,K25+INDIRECT($A25&"!B"&MATCH(Cotation!$B25,Cond,0)+5),IF($C$34>=11,K25+INDIRECT($A25&"!B"&MATCH(Cotation!$B25,Cond,0)+5)))))))) -> 
E26: =(IF(OR(A26="",B26="",C26=""),"",IF($C$34=1,K26+INDIRECT($A26&"!D"&MATCH(Cotation!$B26,Cond,0)+5),IF($C$34<6,K26+INDIRECT($A26&"!G"&MATCH(Cotation!$B26,Cond,0)+5),IF($C$34<11,K26+INDIRECT($A26&"!J"&MATCH(Cotation!$B26,Cond,0)+5),IF($C$34>=11,K26+INDIRECT($A26&"!M"&MATCH(Cotation!$B26,Cond,0)+5))))))) ->  | H26: =(IF(OR(A26="",B26="",C26=""),"",IF($C$34="","",IF($C$34=1,K26+INDIRECT($A26&"!b"&MATCH(Cotation!$B26,Cond,0)+5),IF($C$34<6,K26+INDIRECT($A26&"!B"&MATCH(Cotation!$B26,Cond,0)+5),IF($C$34<11,K26+INDIRECT($A26&"!B"&MATCH(Cotation!$B26,Cond,0)+5),IF($C$34>=11,K26+INDIRECT($A26&"!B"&MATCH(Cotation!$B26,Cond,0)+5)))))))) -> 
E27: =(IF(OR(A27="",B27="",C27=""),"",IF($C$34=1,K27+INDIRECT($A27&"!D"&MATCH(Cotation!$B27,Cond,0)+5),IF($C$34<6,K27+INDIRECT($A27&"!G"&MATCH(Cotation!$B27,Cond,0)+5),IF($C$34<11,K27+INDIRECT($A27&"!J"&MATCH(Cotation!$B27,Cond,0)+5),IF($C$34>=11,K27+INDIRECT($A27&"!M"&MATCH(Cotation!$B27,Cond,0)+5))))))) ->  | H27: =(IF(OR(A27="",B27="",C27=""),"",IF($C$34="","",IF($C$34=1,K27+INDIRECT($A27&"!b"&MATCH(Cotation!$B27,Cond,0)+5),IF($C$34<6,K27+INDIRECT($A27&"!B"&MATCH(Cotation!$B27,Cond,0)+5),IF($C$34<11,K27+INDIRECT($A27&"!B"&MATCH(Cotation!$B27,Cond,0)+5),IF($C$34>=11,K27+INDIRECT($A27&"!B"&MATCH(Cotation!$B27,Cond,0)+5)))))))) -> 
E28: =(IF(OR(A28="",B28="",C28=""),"",IF($C$34=1,K28+INDIRECT($A28&"!D"&MATCH(Cotation!$B28,Cond,0)+5),IF($C$34<6,K28+INDIRECT($A28&"!G"&MATCH(Cotation!$B28,Cond,0)+5),IF($C$34<11,K28+INDIRECT($A28&"!J"&MATCH(Cotation!$B28,Cond,0)+5),IF($C$34>=11,K28+INDIRECT($A28&"!M"&MATCH(Cotation!$B28,Cond,0)+5))))))) ->  | H28: =(IF(OR(A28="",B28="",C28=""),"",IF($C$34="","",IF($C$34=1,K28+INDIRECT($A28&"!b"&MATCH(Cotation!$B28,Cond,0)+5),IF($C$34<6,K28+INDIRECT($A28&"!B"&MATCH(Cotation!$B28,Cond,0)+5),IF($C$34<11,K28+INDIRECT($A28&"!B"&MATCH(Cotation!$B28,Cond,0)+5),IF($C$34>=11,K28+INDIRECT($A28&"!B"&MATCH(Cotation!$B28,Cond,0)+5)))))))) -> 
E29: =(IF(OR(A29="",B29="",C29=""),"",IF($C$34=1,K29+INDIRECT($A29&"!D"&MATCH(Cotation!$B29,Cond,0)+5),IF($C$34<6,K29+INDIRECT($A29&"!G"&MATCH(Cotation!$B29,Cond,0)+5),IF($C$34<11,K29+INDIRECT($A29&"!J"&MATCH(Cotation!$B29,Cond,0)+5),IF($C$34>=11,K29+INDIRECT($A29&"!M"&MATCH(Cotation!$B29,Cond,0)+5))))))) ->  | H29: =(IF(OR(A29="",B29="",C29=""),"",IF($C$34="","",IF($C$34=1,K29+INDIRECT($A29&"!b"&MATCH(Cotation!$B29,Cond,0)+5),IF($C$34<6,K29+INDIRECT($A29&"!B"&MATCH(Cotation!$B29,Cond,0)+5),IF($C$34<11,K29+INDIRECT($A29&"!B"&MATCH(Cotation!$B29,Cond,0)+5),IF($C$34>=11,K29+INDIRECT($A29&"!B"&MATCH(Cotation!$B29,Cond,0)+5)))))))) -> 
E30: =(IF(OR(A30="",B30="",C30=""),"",IF($C$34=1,K30+INDIRECT($A30&"!D"&MATCH(Cotation!$B30,Cond,0)+5),IF($C$34<6,K30+INDIRECT($A30&"!G"&MATCH(Cotation!$B30,Cond,0)+5),IF($C$34<11,K30+INDIRECT($A30&"!J"&MATCH(Cotation!$B30,Cond,0)+5),IF($C$34>=11,K30+INDIRECT($A30&"!M"&MATCH(Cotation!$B30,Cond,0)+5))))))) ->  | H30: =(IF(OR(A30="",B30="",C30=""),"",IF($C$34="","",IF($C$34=1,K30+INDIRECT($A30&"!b"&MATCH(Cotation!$B30,Cond,0)+5),IF($C$34<6,K30+INDIRECT($A30&"!B"&MATCH(Cotation!$B30,Cond,0)+5),IF($C$34<11,K30+INDIRECT($A30&"!B"&MATCH(Cotation!$B30,Cond,0)+5),IF($C$34>=11,K30+INDIRECT($A30&"!B"&MATCH(Cotation!$B30,Cond,0)+5)))))))) -> 
E31: =(IF(OR(A31="",B31="",C31=""),"",IF($C$34=1,K31+INDIRECT($A31&"!D"&MATCH(Cotation!$B31,Cond,0)+5),IF($C$34<6,K31+INDIRECT($A31&"!G"&MATCH(Cotation!$B31,Cond,0)+5),IF($C$34<11,K31+INDIRECT($A31&"!J"&MATCH(Cotation!$B31,Cond,0)+5),IF($C$34>=11,K31+INDIRECT($A31&"!M"&MATCH(Cotation!$B31,Cond,0)+5))))))) ->  | H31: =(IF(OR(A31="",B31="",C31=""),"",IF($C$34="","",IF($C$34=1,K31+INDIRECT($A31&"!b"&MATCH(Cotation!$B31,Cond,0)+5),IF($C$34<6,K31+INDIRECT($A31&"!B"&MATCH(Cotation!$B31,Cond,0)+5),IF($C$34<11,K31+INDIRECT($A31&"!B"&MATCH(Cotation!$B31,Cond,0)+5),IF($C$34>=11,K31+INDIRECT($A31&"!B"&MATCH(Cotation!$B31,Cond,0)+5)))))))) -> 
E32: =(IF(OR(A32="",B32="",C32=""),"",IF($C$34=1,K32+INDIRECT($A32&"!D"&MATCH(Cotation!$B32,Cond,0)+5),IF($C$34<6,K32+INDIRECT($A32&"!G"&MATCH(Cotation!$B32,Cond,0)+5),IF($C$34<11,K32+INDIRECT($A32&"!J"&MATCH(Cotation!$B32,Cond,0)+5),IF($C$34>=11,K32+INDIRECT($A32&"!M"&MATCH(Cotation!$B32,Cond,0)+5))))))) ->  | H32: =(IF(OR(A32="",B32="",C32=""),"",IF($C$34="","",IF($C$34=1,K32+INDIRECT($A32&"!b"&MATCH(Cotation!$B32,Cond,0)+5),IF($C$34<6,K32+INDIRECT($A32&"!B"&MATCH(Cotation!$B32,Cond,0)+5),IF($C$34<11,K32+INDIRECT($A32&"!B"&MATCH(Cotation!$B32,Cond,0)+5),IF($C$34>=11,K32+INDIRECT($A32&"!B"&MATCH(Cotation!$B32,Cond,0)+5)))))))) -> 
E33: =(IF(OR(A33="",B33="",C33=""),"",IF($C$34=1,K33+INDIRECT($A33&"!D"&MATCH(Cotation!$B33,Cond,0)+5),IF($C$34<6,K33+INDIRECT($A33&"!G"&MATCH(Cotation!$B33,Cond,0)+5),IF($C$34<11,K33+INDIRECT($A33&"!J"&MATCH(Cotation!$B33,Cond,0)+5),IF($C$34>=11,K33+INDIRECT($A33&"!M"&MATCH(Cotation!$B33,Cond,0)+5))))))) ->  | H33: =(IF(OR(A33="",B33="",C33=""),"",IF($C$34="","",IF($C$34=1,K33+INDIRECT($A33&"!b"&MATCH(Cotation!$B33,Cond,0)+5),IF($C$34<6,K33+INDIRECT($A33&"!B"&MATCH(Cotation!$B33,Cond,0)+5),IF($C$34<11,K33+INDIRECT($A33&"!B"&MATCH(Cotation!$B33,Cond,0)+5),IF($C$34>=11,K33+INDIRECT($A33&"!B"&MATCH(Cotation!$B33,Cond,0)+5)))))))) -> 
A34: TOTAL | C34: =SUM(C2:C33) -> 14 | D34: =IF(AND(A34="",B34=""),"",IF(C34<>"",C34*12)) -> 168 | G34: =SUM(G2:G33) -> 274.364 | I34: =SUM(I2:I33) -> 33.444 | J34: =SUM(J2:J33)/1000 -> 42 | K34: =IF(M13=0,"0",$M$13/$J$34) -> 0.4276190476

Sheet Miels
A1: Lavande | B1: 1 | C1: Pot de 250g | D1: Eric
A2: Toutes_fleurs | B2: 2 | C2: Pot de 500g | D2: Nadine
A3: Romarin | B3: 3 | C3: Pot de 1kg
A4: Thym | B4: 4 | C4: Sceau de 24Kg
A5: Oranger | B5: 5 | C5: Fût de 300KG
A6: Eucalyptus | B6: 6 | C6: Pot de 250g + 10g de gelée
A7: Forêt | B7: 7
A8: Bruyère | B8: 8
A9: Pyrénnées | B9: 9
A10: Pommier | B10: 10
A11: Chataignier | B11: 11
A12: Tournesol | B12: 12
A13: Acacia | B13: 13
A14: Citronnier | B14: 14
A15: Amandier | B15: 15
A16: Néflier | B16: 16
A17: Miel_aux_Noix | B17: 17
A18: Gelée_royale | B18: 18
B19: 19
B20: 20
B21: 21
B22: 22
B23: 23
B24: 24
B25: 25
B26: 26
B27: 27
B28: 28
B29: 29
B30: 30

Sheet Lavande
A1: MIEL DE LAVANDE
D3: Carton de 12 Unités | O3: Sceau de 24Kg | T3: Fût de 300 Kg
A4: Quantité | B4: Prix D'achat | C4: 1 | G4: de 2 à 5 | J4: de 6 à 10 | M4: Plus de 10 | O4: Coef. | P4: 1 | Q4: de 2 à 6 | R4: de 6 à 10 | S4: Plus de 10 | T4: 1 | W4: 2 | Z4: 3
C5: Coef. | D5: Prix unité | E5: Prix carton | F5: Coef. | G5: Prix unité | H5: Prix carton | I5: Coef. | J5: Prix unité | K5: Prix carton | L5: Coef. | M5: Prix unité | N5: Prix carton | P5: Prix unité | Q5: Prix unité | R5: Prix unité | S5: Prix unité | T5: Coef. | U5: Prix Kg | V5: Prix Fût | W5: Coef. | X5: Prix Kg | Y5: Prix Fût | Z5: Coef. | AA5: Prix Kg | AB5: Prix Fût
A6: Pot 250g | B6: 1.6 | C6: 1.71 | D6: =B6*C6 -> 2.736 | E6: =D6*12 -> 32.832 | F6: 1.51 | G6: =B6*F6 -> 2.416 | H6: =G6*12 -> 28.992 | I6: 1.25 | J6: =B6*I6 -> 2 | K6: =J6*12 -> 24 | L6: 1.15 | M6: =B6*L6 -> 1.84 | N6: =M6*12 -> 22.08
A7: Pot 500g | B7: 2.5 | C7: 1.71 | D7: =B7*C7 -> 4.275 | E7: =D7*12 -> 51.3 | F7: 1.51 | G7: =B7*F7 -> 3.775 | H7: =G7*12 -> 45.3 | I7: 1.25 | J7: =B7*I7 -> 3.125 | K7: =J7*12 -> 37.5 | L7: 1.15 | M7: =B7*L7 -> 2.875 | N7: =M7*12 -> 34.5
A8: Pot 1kg | B8: 4.6 | C8: 1.71 | D8: =B8*C8 -> 7.866 | E8: =D8*12 -> 94.392 | F8: 1.51 | G8: =B8*F8 -> 6.946 | H8: =G8*12 -> 83.352 | I8: 1.25 | J8: =B8*I8 -> 5.75 | K8: =J8*12 -> 69 | L8: 1.15 | M8: =B8*L8 -> 5.29 | N8: =M8*12 -> 63.48
A9: Sceau de 24Kg
A10: Fût de 300KG | T10: 1.27 | U10: =B10*T10 -> 0 | V10: =U10*300 -> 0 | W10: 1.2 | X10: =B10*W10 -> 0 | Y10: =X10*300 -> 0 | Z10: 1.14 | AA10: =B10*Z10 -> 0 | AB10: =AA10*300 -> 0
A12: Tarif H.T - Livraison non comprise , nous consulter

Sheet Toutes_fleurs
A1: Miel Toutes Fleurs
C3: Carton de 12 Unités | O3: Sceau de 24Kg | T3: Fût de 300 Kg
A4: Quantité | B4: Prix D'achat | C4: 1 | G4: de 2 à 5 | J4: de 6 à 10 | M4: Plus de 10 | O4: Coef. | P4: 1 | Q4: de 2 à 6 | R4: de 6 à 10 | S4: Plus de 10 | T4: 1 | W4: 2 | Z4: 3
C5: Coef. | D5: Prix unité | E5: Prix carton | F5: Coef. | G5: Prix unité | H5: Prix carton | I5: Coef. | J5: Prix unité | K5: Prix carton | L5: Coef. | M5: Prix unité | N5: Prix carton | P5: Prix unité | Q5: Prix unité | R5: Prix unité | S5: Prix unité | T5: Coef. | U5: Prix Kg | V5: Prix Fût | W5: Coef. | X5: Prix Kg | Y5: Prix Fût | Z5: Coef. | AA5: Prix Kg | AB5: Prix Fût
A6: Pot 250g | B6: 1.63 | C6: 1.71 | D6: =B6*C6 -> 2.7873 | E6: =D6*12 -> 33.4476 | F6: 1.51 | G6: =B6*F6 -> 2.4613 | H6: =G6*12 -> 29.5356 | I6: 1.25 | J6: =B6*I6 -> 2.0375 | K6: =J6*12 -> 24.45 | L6: 1.15 | M6: =B6*L6 -> 1.8745 | N6: =M6*12 -> 22.494
A7: Pot 500g | B7: 2.35 | C7: 1.71 | D7: =B7*C7 -> 4.0185 | E7: =D7*12 -> 48.222 | F7: 1.51 | G7: =B7*F7 -> 3.5485 | H7: =G7*12 -> 42.582 | I7: 1.25 | J7: =B7*I7 -> 2.9375 | K7: =J7*12 -> 35.25 | L7: 1.15 | M7: =B7*L7 -> 2.7025 | N7: =M7*12 -> 32.43
A8: Pot 1kg | B8: 4.3 | C8: 1.71 | D8: =B8*C8 -> 7.353 | E8: =D8*12 -> 88.236 | F8: 1.51 | G8: =B8*F8 -> 6.493 | H8: =G8*12 -> 77.916 | I8: 1.25 | J8: =B8*I8 -> 5.375 | K8: =J8*12 -> 64.5 | L8: 1.15 | M8: =B8*L8 -> 4.945 | N8: =M8*12 -> 59.34
A9: Sceau de 24Kg
A10: Fût de 300KG | B10: 3.65 | T10: 1.27 | U10: =B10*T10 -> 4.6355 | V10: =U10*300 -> 1390.65 | W10: 1.2 | X10: =B10*W10 -> 4.38 | Y10: =X10*300 -> 1314 | Z10: 1.14 | AA10: =B10*Z10 -> 4.161 | AB10: =AA10*300 -> 1248.3
A12: Tarif H.T - Livraison non comprise , nous consulter

Sheet Romarin
A1: Miel Romarin
D3: Carton de 12 Unités | O3: Sceau de 24Kg | T3: Fût de 300 Kg
A4: Quantité | B4: Prix D'achat | C4: 1 | G4: de 2 à 5 | J4: de 6 à 10 | M4: Plus de 10 | O4: Coef. | P4: 1 | Q4: de 2 à 6 | R4: de 6 à 10 | S4: Plus de 10 | T4: 1 | W4: 2 | Z4: 3
C5: Coef. | D5: Prix unité | E5: Prix carton | F5: Coef. | G5: Prix unité | H5: Prix carton | I5: Coef. | J5: Prix unité | K5: Prix carton | L5: Coef. | M5: Prix unité | N5: Prix carton | P5: Prix unité | Q5: Prix unité | R5: Prix unité | S5: Prix unité | T5: Coef. | U5: Prix Kg | V5: Prix Fût | W5: Coef. | X5: Prix Kg | Y5: Prix Fût | Z5: Coef. | AA5: Prix Kg | AB5: Prix Fût
A6: Pot 250g | B6: 1.6 | C6: 1.71 | D6: =B6*C6 -> 2.736 | E6: =D6*12 -> 32.832 | F6: 1.51 | G6: =B6*F6 -> 2.416 | H6: =G6*12 -> 28.992 | I6: 1.25 | J6: =B6*I6 -> 2 | K6: =J6*12 -> 24 | L6: 1.15 | M6: =B6*L6 -> 1.84 | N6: =M6*12 -> 22.08
A7: Pot 500g | B7: 2.55 | C7: 1.71 | D7: =B7*C7 -> 4.3605 | E7: =D7*12 -> 52.326 | F7: 1.51 | G7: =B7*F7 -> 3.8505 | H7: =G7*12 -> 46.206 | I7: 1.25 | J7: =B7*I7 -> 3.1875 | K7: =J7*12 -> 38.25 | L7: 1.15 | M7: =B7*L7 -> 2.9325 | N7: =M7*12 -> 35.19
A8: Pot 1kg | B8: 4.7 | C8: 1.71 | D8: =B8*C8 -> 8.037 | E8: =D8*12 -> 96.444 | F8: 1.51 | G8: =B8*F8 -> 7.097 | H8: =G8*12 -> 85.164 | I8: 1.25 | J8: =B8*I8 -> 5.875 | K8: =J8*12 -> 70.5 | L8: 1.15 | M8: =B8*L8 -> 5.405 | N8: =M8*12 -> 64.86
A9: Sceau de 24Kg
A10: Fût de 300KG | T10: 1.27 | U10: =B10*T10 -> 0 | V10: =U10*300 -> 0 | W10: 1.2 | X10: =B10*W10 -> 0 | Y10: =X10*300 -> 0 | Z10: 1.14 | AA10: =B10*Z10 -> 0 | AB10: =AA10*300 -> 0
A12: Tarif H.T - Livraison non comprise , nous consulter

Sheet Thym
A1: Miel Thym
D3: Carton de 12 Unités | O3: Sceau de 24Kg | T3: Fût de 300 Kg
A4: Quantité | B4: Prix D'achat | C4: 1 | G4: de 2 à 5 | J4: de 6 à 10 | M4: Plus de 10 | O4: Coef. | P4: 1 | Q4: de 2 à 6 | R4: de 6 à 10 | S4: Plus de 10 | T4: 1 | W4: 2 | Z4: 3
C5: Coef. | D5: Prix unité | E5: Prix carton | F5: Coef. | G5: Prix unité | H5: Prix carton | I5: Coef. | J5: Prix unité | K5: Prix carton | L5: Coef. | M5: Prix unité | N5: Prix carton | P5: Prix unité | Q5: Prix unité | R5: Prix unité | S5: Prix unité | T5: Coef. | U5: Prix Kg | V5: Prix Fût | W5: Coef. | X5: Prix Kg | Y5: Prix Fût | Z5: Coef. | AA5: Prix Kg | AB5: Prix Fût
A6: Pot 250g | B6: 1.6 | C6: 1.71 | D6: =B6*C6 -> 2.736 | E6: =D6*12 -> 32.832 | F6: 1.51 | G6: =B6*F6 -> 2.416 | H6: =G6*12 -> 28.992 | I6: 1.25 | J6: =B6*I6 -> 2 | K6: =J6*12 -> 24 | L6: 1.15 | M6: =B6*L6 -> 1.84 | N6: =M6*12 -> 22.08
A7: Pot 500g | B7: 2.5 | C7: 1.71 | D7: =B7*C7 -> 4.275 | E7: =D7*12 -> 51.3 | F7: 1.51 | G7: =B7*F7 -> 3.775 | H7: =G7*12 -> 45.3 | I7: 1.25 | J7: =B7*I7 -> 3.125 | K7: =J7*12 -> 37.5 | L7: 1.15 | M7: =B7*L7 -> 2.875 | N7: =M7*12 -> 34.5
A8: Pot 1kg | B8: 4.6 | C8: 1.71 | D8: =B8*C8 -> 7.866 | E8: =D8*12 -> 94.392 | F8: 1.51 | G8: =B8*F8 -> 6.946 | H8: =G8*12 -> 83.352 | I8: 1.25 | J8: =B8*I8 -> 5.75 | K8: =J8*12 -> 69 | L8: 1.15 | M8: =B8*L8 -> 5.29 | N8: =M8*12 -> 63.48
A9: Sceau de 24Kg
A10: Fût de 300KG | B10: 4.2 | T10: 1.27 | U10: =B10*T10 -> 5.334 | V10: =U10*300 -> 1600.2 | W10: 1.2 | X10: =B10*W10 -> 5.04 | Y10: =X10*300 -> 1512 | Z10: 1.14 | AA10: =B10*Z10 -> 4.788 | AB10: =AA10*300 -> 1436.4
A12: Tarif H.T - Livraison non comprise , nous consulter

Sheet Oranger
A1: Miel Oranger
D3: Carton de 12 Unités | O3: Sceau de 24Kg | T3: Fût de 300 Kg
A4: Quantité | B4: Prix D'achat | C4: 1 | G4: de 2 à 5 | J4: de 6 à 10 | M4: Plus de 10 | O4: Coef. | P4: 1 | Q4: de 2 à 6 | R4: de 6 à 10 | S4: Plus de 10 | T4: 1 | W4: 2 | Z4: 3
C5: Coef. | D5: Prix unité | E5: Prix carton | F5: Coef. | G5: Prix unité | H5: Prix carton | I5: Coef. | J5: Prix unité | K5: Prix carton | L5: Coef. | M5: Prix unité | N5: Prix carton | P5: Prix unité | Q5: Prix unité | R5: Prix unité | S5: Prix unité | T5: Coef. | U5: Prix Kg | V5: Prix Fût | W5: Coef. | X5: Prix Kg | Y5: Prix Fût | Z5: Coef. | AA5: Prix Kg | AB5: Prix Fût
A6: Pot 250g | B6: 1.79 | C6: 1.71 | D6: =B6*C6 -> 3.0609 | E6: =D6*12 -> 36.7308 | F6: 1.51 | G6: =B6*F6 -> 2.7029 | H6: =G6*12 -> 32.4348 | I6: 1.25 | J6: =B6*I6 -> 2.2375 | K6: =J6*12 -> 26.85 | L6: 1.15 | M6: =B6*L6 -> 2.0585 | N6: =M6*12 -> 24.702
A7: Pot 500g | B7: 3.08 | C7: 1.71 | D7: =B7*C7 -> 5.2668 | E7: =D7*12 -> 63.2016 | F7: 1.51 | G7: =B7*F7 -> 4.6508 | H7: =G7*12 -> 55.8096 | I7: 1.25 | J7: =B7*I7 -> 3.85 | K7: =J7*12 -> 46.2 | L7: 1.15 | M7: =B7*L7 -> 3.542 | N7: =M7*12 -> 42.504
A8: Pot 1kg | B8: 5.15 | C8: 1.71 | D8: =B8*C8 -> 8.8065 | E8: =D8*12 -> 105.678 | F8: 1.51 | G8: =B8*F8 -> 7.7765 | H8: =G8*12 -> 93.318 | I8: 1.25 | J8: =B8*I8 -> 6.4375 | K8: =J8*12 -> 77.25 | L8: 1.15 | M8: =B8*L8 -> 5.9225 | N8: =M8*12 -> 71.07
A9: Sceau de 24Kg
A10: Fût de 300KG | B10: 4.1 | T10: 1.27 | U10: =B10*T10 -> 5.207 | V10: =U10*300 -> 1562.1 | W10: 1.2 | X10: =B10*W10 -> 4.92 | Y10: =X10*300 -> 1476 | Z10: 1.14 | AA10: =B10*Z10 -> 4.674 | AB10: =AA10*300 -> 1402.2
A12: Tarif H.T - Livraison non comprise , nous consulter

Sheet Eucalyptus
A1: Miel Eucalyptus
D3: Carton de 12 Unités | O3: Sceau de 24Kg | T3: Fût de 300 Kg
A4: Quantité | B4: Prix D'achat | C4: 1 | G4: de 2 à 5 | J4: de 6 à 10 | M4: Plus de 10 | O4: Coef. | P4: 1 | Q4: de 2 à 6 | R4: de 6 à 10 | S4: Plus de 10 | T4: 1 | W4: 2 | Z4: 3
C5: Coef. | D5: Prix unité | E5: Prix carton | F5: Coef. | G5: Prix unité | H5: Prix carton | I5: Coef. | J5: Prix unité | K5: Prix carton | L5: Coef. | M5: Prix unité | N5: Prix carton | P5: Prix unité | Q5: Prix unité | R5: Prix unité | S5: Prix unité | T5: Coef. | U5: Prix Kg | V5: Prix Fût | W5: Coef. | X5: Prix Kg | Y5: Prix Fût | Z5: Coef. | AA5: Prix Kg | AB5: Prix Fût
A6: Pot 250g | B6: 1.6 | C6: 1.71 | D6: =B6*C6 -> 2.736 | E6: =D6*12 -> 32.832 | F6: 1.51 | G6: =B6*F6 -> 2.416 | H6: =G6*12 -> 28.992 | I6: 1.25 | J6: =B6*I6 -> 2 | K6: =J6*12 -> 24 | L6: 1.15 | M6: =B6*L6 -> 1.84 | N6: =M6*12 -> 22.08
A7: Pot 500g | B7: 2.5 | C7: 1.71 | D7: =B7*C7 -> 4.275 | E7: =D7*12 -> 51.3 | F7: 1.51 | G7: =B7*F7 -> 3.775 | H7: =G7*12 -> 45.3 | I7: 1.25 | J7: =B7*I7 -> 3.125 | K7: =J7*12 -> 37.5 | L7: 1.15 | M7: =B7*L7 -> 2.875 | N7: =M7*12 -> 34.5
A8: Pot 1kg | B8: 4.6 | C8: 1.71 | D8: =B8*C8 -> 7.866 | E8: =D8*12 -> 94.392 | F8: 1.51 | G8: =B8*F8 -> 6.946 | H8: =G8*12 -> 83.352 | I8: 1.25 | J8: =B8*I8 -> 5.75 | K8: =J8*12 -> 69 | L8: 1.15 | M8: =B8*L8 -> 5.29 | N8: =M8*12 -> 63.48
A9: Sceau de 24Kg
A10: Fût de 300KG | T10: 1.27 | U10: =B10*T10 -> 0 | V10: =U10*300 -> 0 | W10: 1.2 | X10: =B10*W10 -> 0 | Y10: =X10*300 -> 0 | Z10: 1.14 | AA10: =B10*Z10 -> 0 | AB10: =AA10*300 -> 0
A12: Tarif H.T - Livraison non comprise , nous consulter

Sheet Forêt
A1: Miel Forêt
D3: Carton de 12 Unités | O3: Sceau de 24Kg | T3: Fût de 300 Kg
A4: Quantité | B4: Prix D'achat | C4: 1 | G4: de 2 à 5 | J4: de 6 à 10 | M4: Plus de 10 | O4: Coef. | P4: 1 | Q4: de 2 à 6 | R4: de 6 à 10 | S4: Plus de 10 | T4: 1 | W4: 2 | Z4: 3
C5: Coef. | D5: Prix unité | E5: Prix carton | F5: Coef. | G5: Prix unité | H5: Prix carton | I5: Coef. | J5: Prix unité | K5: Prix carton | L5: Coef. | M5: Prix unité | N5: Prix carton | P5: Prix unité | Q5: Prix unité | R5: Prix unité | S5: Prix unité | T5: Coef. | U5: Prix Kg | V5: Prix Fût | W5: Coef. | X5: Prix Kg | Y5: Prix Fût | Z5: Coef. | AA5: Prix Kg | AB5: Prix Fût
A6: Pot 250g | B6: 1.79 | C6: 1.71 | D6: =B6*C6 -> 3.0609 | E6: =D6*12 -> 36.7308 | F6: 1.51 | G6: =B6*F6 -> 2.7029 | H6: =G6*12 -> 32.4348 | I6: 1.25 | J6: =B6*I6 -> 2.2375 | K6: =J6*12 -> 26.85 | L6: 1.15 | M6: =B6*L6 -> 2.0585 | N6: =M6*12 -> 24.702
A7: Pot 500g | B7: 2.5 | C7: 1.71 | D7: =B7*C7 -> 4.275 | E7: =D7*12 -> 51.3 | F7: 1.51 | G7: =B7*F7 -> 3.775 | H7: =G7*12 -> 45.3 | I7: 1.25 | J7: =B7*I7 -> 3.125 | K7: =J7*12 -> 37.5 | L7: 1.15 | M7: =B7*L7 -> 2.875 | N7: =M7*12 -> 34.5
A8: Pot 1kg | B8: 4.6 | C8: 1.71 | D8: =B8*C8 -> 7.866 | E8: =D8*12 -> 94.392 | F8: 1.51 | G8: =B8*F8 -> 6.946 | H8: =G8*12 -> 83.352 | I8: 1.25 | J8: =B8*I8 -> 5.75 | K8: =J8*12 -> 69 | L8: 1.15 | M8: =B8*L8 -> 5.29 | N8: =M8*12 -> 63.48
A9: Sceau de 24Kg
A10: Fût de 300KG | T10: 1.27 | U10: =B10*T10 -> 0 | V10: =U10*300 -> 0 | W10: 1.2 | X10: =B10*W10 -> 0 | Y10: =X10*300 -> 0 | Z10: 1.14 | AA10: =B10*Z10 -> 0 | AB10: =AA10*300 -> 0
A12: Tarif H.T - Livraison non comprise , nous consulter

Sheet Bruyère
A1: Miel Bruyère
D3: Carton de 12 Unités | O3: Sceau de 24Kg | T3: Fût de 300 Kg
A4: Quantité | B4: Prix D'achat | C4: 1 | G4: de 2 à 5 | J4: de 6 à 10 | M4: Plus de 10 | O4: Coef. | P4: 1 | Q4: de 2 à 6 | R4: de 6 à 10 | S4: Plus de 10 | T4: 1 | W4: 2 | Z4: 3
C5: Coef. | D5: Prix unité | E5: Prix carton | F5: Coef. | G5: Prix unité | H5: Prix carton | I5: Coef. | J5: Prix unité | K5: Prix carton | L5: Coef. | M5: Prix unité | N5: Prix carton | P5: Prix unité | Q5: Prix unité | R5: Prix unité | S5: Prix unité | T5: Coef. | U5: Prix Kg | V5: Prix Fût | W5: Coef. | X5: Prix Kg | Y5: Prix Fût | Z5: Coef. | AA5: Prix Kg | AB5: Prix Fût
A6: Pot 250g | B6: 1.6 | C6: 1.71 | D6: =B6*C6 -> 2.736 | E6: =D6*12 -> 32.832 | F6: 1.51 | G6: =B6*F6 -> 2.416 | H6: =G6*12 -> 28.992 | I6: 1.25 | J6: =B6*I6 -> 2 | K6: =J6*12 -> 24 | L6: 1.15 | M6: =B6*L6 -> 1.84 | N6: =M6*12 -> 22.08
A7: Pot 500g | B7: 4.6 | C7: 1.71 | D7: =B7*C7 -> 7.866 | E7: =D7*12 -> 94.392 | F7: 1.51 | G7: =B7*F7 -> 6.946 | H7: =G7*12 -> 83.352 | I7: 1.25 | J7: =B7*I7 -> 5.75 | K7: =J7*12 -> 69 | L7: 1.15 | M7: =B7*L7 -> 5.29 | N7: =M7*12 -> 63.48
A8: Pot 1kg | B8: 2.5 | C8: 1.71 | D8: =B8*C8 -> 4.275 | E8: =D8*12 -> 51.3 | F8: 1.51 | G8: =B8*F8 -> 3.775 | H8: =G8*12 -> 45.3 | I8: 1.25 | J8: =B8*I8 -> 3.125 | K8: =J8*12 -> 37.5 | L8: 1.15 | M8: =B8*L8 -> 2.875 | N8: =M8*12 -> 34.5
A9: Sceau de 24Kg
A10: Fût de 300KG | B10: 0 | T10: 1.27 | U10: =B10*T10 -> 0 | V10: =U10*300 -> 0 | W10: 1.2 | X10: =B10*W10 -> 0 | Y10: =X10*300 -> 0 | Z10: 1.14 | AA10: =B10*Z10 -> 0 | AB10: =AA10*300 -> 0
A12: Tarif H.T - Livraison non comprise , nous consulter

Sheet Pyrénnées
A1: Miel Pyrénnées
D3: Carton de 12 Unités | O3: Sceau de 24Kg | T3: Fût de 300 Kg
A4: Quantité | B4: Prix D'achat | C4: 1 | G4: de 2 à 5 | J4: de 6 à 10 | M4: Plus de 10 | O4: Coef. | P4: 1 | Q4: de 2 à 6 | R4: de 6 à 10 | S4: Plus de 10 | T4: 1 | W4: 2 | Z4: 3
C5: Coef. | D5: Prix unité | E5: Prix carton | F5: Coef. | G5: Prix unité | H5: Prix carton | I5: Coef. | J5: Prix unité | K5: Prix carton | L5: Coef. | M5: Prix unité | N5: Prix carton | P5: Prix unité | Q5: Prix unité | R5: Prix unité | S5: Prix unité | T5: Coef. | U5: Prix Kg | V5: Prix Fût | W5: Coef. | X5: Prix Kg | Y5: Prix Fût | Z5: Coef. | AA5: Prix Kg | AB5: Prix Fût
A6: Pot 250g | B6: 1.79 | C6: 1.71 | D6: =B6*C6 -> 3.0609 | E6: =D6*12 -> 36.7308 | F6: 1.51 | G6: =B6*F6 -> 2.7029 | H6: =G6*12 -> 32.4348 | I6: 1.25 | J6: =B6*I6 -> 2.2375 | K6: =J6*12 -> 26.85 | L6: 1.15 | M6: =B6*L6 -> 2.0585 | N6: =M6*12 -> 24.702
A7: Pot 500g | B7: 3.08 | C7: 1.71 | D7: =B7*C7 -> 5.2668 | E7: =D7*12 -> 63.2016 | F7: 1.51 | G7: =B7*F7 -> 4.6508 | H7: =G7*12 -> 55.8096 | I7: 1.25 | J7: =B7*I7 -> 3.85 | K7: =J7*12 -> 46.2 | L7: 1.15 | M7: =B7*L7 -> 3.542 | N7: =M7*12 -> 42.504
A8: Pot 1kg | B8: 5.15 | C8: 1.71 | D8: =B8*C8 -> 8.8065 | E8: =D8*12 -> 105.678 | F8: 1.51 | G8: =B8*F8 -> 7.7765 | H8: =G8*12 -> 93.318 | I8: 1.25 | J8: =B8*I8 -> 6.4375 | K8: =J8*12 -> 77.25 | L8: 1.15 | M8: =B8*L8 -> 5.9225 | N8: =M8*12 -> 71.07
A9: Sceau de 24Kg
A10: Fût de 300KG | B10: 4.7 | T10: 1.27 | U10: =B10*T10 -> 5.969 | V10: =U10*300 -> 1790.7 | W10: 1.2 | X10: =B10*W10 -> 5.64 | Y10: =X10*300 -> 1692 | Z10: 1.14 | AA10: =B10*Z10 -> 5.358 | AB10: =AA10*300 -> 1607.4
A12: Tarif H.T - Livraison non comprise , nous consulter

Sheet Pommier
A1: Miel Pommier
D3: Carton de 12 Unités | O3: Sceau de 24Kg | T3: Fût de 300 Kg
A4: Quantité | B4: Prix D'achat | C4: 1 | G4: de 2 à 5 | J4: de 6 à 10 | M4: Plus de 10 | O4: Coef. | P4: 1 | Q4: de 2 à 6 | R4: de 6 à 10 | S4: Plus de 10 | T4: 1 | W4: 2 | Z4: 3
C5: Coef. | D5: Prix unité | E5: Prix carton | F5: Coef. | G5: Prix unité | H5: Prix carton | I5: Coef. | J5: Prix unité | K5: Prix carton | L5: Coef. | M5: Prix unité | N5: Prix carton | P5: Prix unité | Q5: Prix unité | R5: Prix unité | S5: Prix unité | T5: Coef. | U5: Prix Kg | V5: Prix Fût | W5: Coef. | X5: Prix Kg | Y5: Prix Fût | Z5: Coef. | AA5: Prix Kg | AB5: Prix Fût
A6: Pot 250g | B6: 1.79 | C6: 1.71 | D6: =B6*C6 -> 3.0609 | E6: =D6*12 -> 36.7308 | F6: 1.51 | G6: =B6*F6 -> 2.7029 | H6: =G6*12 -> 32.4348 | I6: 1.25 | J6: =B6*I6 -> 2.2375 | K6: =J6*12 -> 26.85 | L6: 1.15 | M6: =B6*L6 -> 2.0585 | N6: =M6*12 -> 24.702
A7: Pot 500g | B7: 3.08 | C7: 1.71 | D7: =B7*C7 -> 5.2668 | E7: =D7*12 -> 63.2016 | F7: 1.51 | G7: =B7*F7 -> 4.6508 | H7: =G7*12 -> 55.8096 | I7: 1.25 | J7: =B7*I7 -> 3.85 | K7: =J7*12 -> 46.2 | L7: 1.15 | M7: =B7*L7 -> 3.542 | N7: =M7*12 -> 42.504
A8: Pot 1kg | B8: 5.15 | C8: 1.71 | D8: =B8*C8 -> 8.8065 | E8: =D8*12 -> 105.678 | F8: 1.51 | G8: =B8*F8 -> 7.7765 | H8: =G8*12 -> 93.318 | I8: 1.25 | J8: =B8*I8 -> 6.4375 | K8: =J8*12 -> 77.25 | L8: 1.15 | M8: =B8*L8 -> 5.9225 | N8: =M8*12 -> 71.07
A9: Sceau de 24Kg
A10: Fût de 300KG | B10: 4.9 | T10: 1.27 | U10: =B10*T10 -> 6.223 | V10: =U10*300 -> 1866.9 | W10: 1.2 | X10: =B10*W10 -> 5.88 | Y10: =X10*300 -> 1764 | Z10: 1.14 | AA10: =B10*Z10 -> 5.586 | AB10: =AA10*300 -> 1675.8
A12: Tarif H.T - Livraison non comprise , nous consulter

Sheet Chataignier
A1: Miel de Chataignier
D3: Carton de 12 Unités | O3: Sceau de 24Kg | T3: Fût de 300 Kg
A4: Quantité | B4: Prix D'achat | C4: 1 | G4: de 2 à 5 | J4: de 6 à 10 | M4: Plus de 10 | O4: Coef. | P4: 1 | Q4: de 2 à 6 | R4: de 6 à 10 | S4: Plus de 10 | T4: 1 | W4: 2 | Z4: 3
C5: Coef. | D5: Prix unité | E5: Prix carton | F5: Coef. | G5: Prix unité | H5: Prix carton | I5: Coef. | J5: Prix unité | K5: Prix carton | L5: Coef. | M5: Prix unité | N5: Prix carton | P5: Prix unité | Q5: Prix unité | R5: Prix unité | S5: Prix unité | T5: Coef. | U5: Prix Kg | V5: Prix Fût | W5: Coef. | X5: Prix Kg | Y5: Prix Fût | Z5: Coef. | AA5: Prix Kg | AB5: Prix Fût
A6: Pot 250g | B6: 1.79 | C6: 1.71 | D6: =B6*C6 -> 3.0609 | E6: =D6*12 -> 36.7308 | F6: 1.51 | G6: =B6*F6 -> 2.7029 | H6: =G6*12 -> 32.4348 | I6: 1.25 | J6: =B6*I6 -> 2.2375 | K6: =J6*12 -> 26.85 | L6: 1.15 | M6: =B6*L6 -> 2.0585 | N6: =M6*12 -> 24.702
A7: Pot 500g | B7: 3.08 | C7: 1.71 | D7: =B7*C7 -> 5.2668 | E7: =D7*12 -> 63.2016 | F7: 1.51 | G7: =B7*F7 -> 4.6508 | H7: =G7*12 -> 55.8096 | I7: 1.25 | J7: =B7*I7 -> 3.85 | K7: =J7*12 -> 46.2 | L7: 1.15 | M7: =B7*L7 -> 3.542 | N7: =M7*12 -> 42.504
A8: Pot 1kg | B8: 5.15 | C8: 1.71 | D8: =B8*C8 -> 8.8065 | E8: =D8*12 -> 105.678 | F8: 1.51 | G8: =B8*F8 -> 7.7765 | H8: =G8*12 -> 93.318 | I8: 1.25 | J8: =B8*I8 -> 6.4375 | K8: =J8*12 -> 77.25 | L8: 1.15 | M8: =B8*L8 -> 5.9225 | N8: =M8*12 -> 71.07
A9: Sceau de 24Kg
A10: Fût de 300KG | B10: 4.3 | T10: 1.27 | U10: =B10*T10 -> 5.461 | V10: =U10*300 -> 1638.3 | W10: 1.2 | X10: =B10*W10 -> 5.16 | Y10: =X10*300 -> 1548 | Z10: 1.14 | AA10: =B10*Z10 -> 4.902 | AB10: =AA10*300 -> 1470.6
A12: Tarif H.T - Livraison non comprise , nous consulter

Sheet Tournesol
A1: Miel Tournesol
D3: Carton de 12 Unités | O3: Sceau de 24Kg | T3: Fût de 300 Kg
A4: Quantité | B4: Prix D'achat | C4: 1 | G4: de 2 à 5 | J4: de 6 à 10 | M4: Plus de 10 | O4: Coef. | P4: 1 | Q4: de 2 à 6 | R4: de 6 à 10 | S4: Plus de 10 | T4: 1 | W4: 2 | Z4: 3
C5: Coef. | D5: Prix unité | E5: Prix carton | F5: Coef. | G5: Prix unité | H5: Prix carton | I5: Coef. | J5: Prix unité | K5: Prix carton | L5: Coef. | M5: Prix unité | N5: Prix carton | P5: Prix unité | Q5: Prix unité | R5: Prix unité | S5: Prix unité | T5: Coef. | U5: Prix Kg | V5: Prix Fût | W5: Coef. | X5: Prix Kg | Y5: Prix Fût | Z5: Coef. | AA5: Prix Kg | AB5: Prix Fût
A6: Pot 250g | C6: 1.71 | D6: =B6*C6 -> 0 | E6: =D6*12 -> 0 | F6: 1.51 | G6: =B6*F6 -> 0 | H6: =G6*12 -> 0 | I6: 1.25 | J6: =B6*I6 -> 0 | K6: =J6*12 -> 0 | L6: 1.15 | M6: =B6*L6 -> 0 | N6: =M6*12 -> 0
A7: Pot 500g | C7: 1.71 | D7: =B7*C7 -> 0 | E7: =D7*12 -> 0 | F7: 1.51 | G7: =B7*F7 -> 0 | H7: =G7*12 -> 0 | I7: 1.25 | J7: =B7*I7 -> 0 | K7: =J7*12 -> 0 | L7: 1.15 | M7: =B7*L7 -> 0 | N7: =M7*12 -> 0
A8: Pot 1kg | C8: 1.71 | D8: =B8*C8 -> 0 | E8: =D8*12 -> 0 | F8: 1.51 | G8: =B8*F8 -> 0 | H8: =G8*12 -> 0 | I8: 1.25 | J8: =B8*I8 -> 0 | K8: =J8*12 -> 0 | L8: 1.15 | M8: =B8*L8 -> 0 | N8: =M8*12 -> 0
A9: Sceau de 24Kg
A10: Fût de 300KG | T10: 1.27 | U10: =B10*T10 -> 0 | V10: =U10*300 -> 0 | W10: 1.2 | X10: =B10*W10 -> 0 | Y10: =X10*300 -> 0 | Z10: 1.14 | AA10: =B10*Z10 -> 0 | AB10: =AA10*300 -> 0
A12: Tarif H.T - Livraison non comprise , nous consulter

Sheet Acacia
A1: Miel Acacia
D3: Carton de 12 Unités | O3: Sceau de 24Kg | T3: Fût de 300 Kg
A4: Quantité | B4: Prix D'achat | C4: 1 | G4: de 2 à 5 | J4: de 6 à 10 | M4: Plus de 10 | O4: Coef. | P4: 1 | Q4: de 2 à 6 | R4: de 6 à 10 | S4: Plus de 10 | T4: 1 | W4: 2 | Z4: 3
C5: Coef. | D5: Prix unité | E5: Prix carton | F5: Coef. | G5: Prix unité | H5: Prix carton | I5: Coef. | J5: Prix unité | K5: Prix carton | L5: Coef. | M5: Prix unité | N5: Prix carton | P5: Prix unité | Q5: Prix unité | R5: Prix unité | S5: Prix unité | T5: Coef. | U5: Prix Kg | V5: Prix Fût | W5: Coef. | X5: Prix Kg | Y5: Prix Fût | Z5: Coef. | AA5: Prix Kg | AB5: Prix Fût
A6: Pot 250g | C6: 1.71 | D6: =B6*C6 -> 0 | E6: =D6*12 -> 0 | F6: 1.51 | G6: =B6*F6 -> 0 | H6: =G6*12 -> 0 | I6: 1.25 | J6: =B6*I6 -> 0 | K6: =J6*12 -> 0 | L6: 1.15 | M6: =B6*L6 -> 0 | N6: =M6*12 -> 0
A7: Pot 500g | C7: 1.71 | D7: =B7*C7 -> 0 | E7: =D7*12 -> 0 | F7: 1.51 | G7: =B7*F7 -> 0 | H7: =G7*12 -> 0 | I7: 1.25 | J7: =B7*I7 -> 0 | K7: =J7*12 -> 0 | L7: 1.15 | M7: =B7*L7 -> 0 | N7: =M7*12 -> 0
A8: Pot 1kg | C8: 1.71 | D8: =B8*C8 -> 0 | E8: =D8*12 -> 0 | F8: 1.51 | G8: =B8*F8 -> 0 | H8: =G8*12 -> 0 | I8: 1.25 | J8: =B8*I8 -> 0 | K8: =J8*12 -> 0 | L8: 1.15 | M8: =B8*L8 -> 0 | N8: =M8*12 -> 0
A9: Sceau de 24Kg
A10: Fût de 300KG | T10: 1.27 | U10: =B10*T10 -> 0 | V10: =U10*300 -> 0 | W10: 1.2 | X10: =B10*W10 -> 0 | Y10: =X10*300 -> 0 | Z10: 1.14 | AA10: =B10*Z10 -> 0 | AB10: =AA10*300 -> 0
A12: Tarif H.T - Livraison non comprise , nous consulter

Sheet Citronnier
A1: Miel Citronnier
D3: Carton de 12 Unités | O3: Sceau de 24Kg | T3: Fût de 300 Kg
A4: Quantité | B4: Prix D'achat | C4: 1 | G4: de 2 à 5 | J4: de 6 à 10 | M4: Plus de 10 | O4: Coef. | P4: 1 | Q4: de 2 à 6 | R4: de 6 à 10 | S4: Plus de 10 | T4: 1 | W4: 2 | Z4: 3
C5: Coef. | D5: Prix unité | E5: Prix carton | F5: Coef. | G5: Prix unité | H5: Prix carton | I5: Coef. | J5: Prix unité | K5: Prix carton | L5: Coef. | M5: Prix unité | N5: Prix carton | P5: Prix unité | Q5: Prix unité | R5: Prix unité | S5: Prix unité | T5: Coef. | U5: Prix Kg | V5: Prix Fût | W5: Coef. | X5: Prix Kg | Y5: Prix Fût | Z5: Coef. | AA5: Prix Kg | AB5: Prix Fût
A6: Pot 250g | C6: 1.71 | D6: =B6*C6 -> 0 | E6: =D6*12 -> 0 | F6: 1.51 | G6: =B6*F6 -> 0 | H6: =G6*12 -> 0 | I6: 1.25 | J6: =B6*I6 -> 0 | K6: =J6*12 -> 0 | L6: 1.15 | M6: =B6*L6 -> 0 | N6: =M6*12 -> 0
A7: Pot 500g | B7: 2.5 | C7: 1.71 | D7: =B7*C7 -> 4.275 | E7: =D7*12 -> 51.3 | F7: 1.51 | G7: =B7*F7 -> 3.775 | H7: =G7*12 -> 45.3 | I7: 1.25 | J7: =B7*I7 -> 3.125 | K7: =J7*12 -> 37.5 | L7: 1.15 | M7: =B7*L7 -> 2.875 | N7: =M7*12 -> 34.5
A8: Pot 1kg | B8: 4.6 | C8: 1.71 | D8: =B8*C8 -> 7.866 | E8: =D8*12 -> 94.392 | F8: 1.51 | G8: =B8*F8 -> 6.946 | H8: =G8*12 -> 83.352 | I8: 1.25 | J8: =B8*I8 -> 5.75 | K8: =J8*12 -> 69 | L8: 1.15 | M8: =B8*L8 -> 5.29 | N8: =M8*12 -> 63.48
A9: Sceau de 24Kg
A10: Fût de 300KG | T10: 1.27 | U10: =B10*T10 -> 0 | V10: =U10*300 -> 0 | W10: 1.2 | X10: =B10*W10 -> 0 | Y10: =X10*300 -> 0 | Z10: 1.14 | AA10: =B10*Z10 -> 0 | AB10: =AA10*300 -> 0
A12: Tarif H.T - Livraison non comprise , nous consulter

Sheet Amandier
A1: Miel Amandier
D3: Carton de 12 Unités | O3: Sceau de 24Kg | T3: Fût de 300 Kg
A4: Quantité | B4: Prix D'achat | C4: 1 | G4: de 2 à 5 | J4: de 6 à 10 | M4: Plus de 10 | O4: Coef. | P4: 1 | Q4: de 2 à 6 | R4: de 6 à 10 | S4: Plus de 10 | T4: 1 | W4: 2 | Z4: 3
C5: Coef. | D5: Prix unité | E5: Prix carton | F5: Coef. | G5: Prix unité | H5: Prix carton | I5: Coef. | J5: Prix unité | K5: Prix carton | L5: Coef. | M5: Prix unité | N5: Prix carton | P5: Prix unité | Q5: Prix unité | R5: Prix unité | S5: Prix unité | T5: Coef. | U5: Prix Kg | V5: Prix Fût | W5: Coef. | X5: Prix Kg | Y5: Prix Fût | Z5: Coef. | AA5: Prix Kg | AB5: Prix Fût
A6: Pot 250g | C6: 1.71 | D6: =B6*C6 -> 0 | E6: =D6*12 -> 0 | F6: 1.51 | G6: =B6*F6 -> 0 | H6: =G6*12 -> 0 | I6: 1.25 | J6: =B6*I6 -> 0 | K6: =J6*12 -> 0 | L6: 1.15 | M6: =B6*L6 -> 0 | N6: =M6*12 -> 0
A7: Pot 500g | B7: 2.5 | C7: 1.71 | D7: =B7*C7 -> 4.275 | E7: =D7*12 -> 51.3 | F7: 1.51 | G7: =B7*F7 -> 3.775 | H7: =G7*12 -> 45.3 | I7: 1.25 | J7: =B7*I7 -> 3.125 | K7: =J7*12 -> 37.5 | L7: 1.15 | M7: =B7*L7 -> 2.875 | N7: =M7*12 -> 34.5
A8: Pot 1kg | B8: 4.6 | C8: 1.71 | D8: =B8*C8 -> 7.866 | E8: =D8*12 -> 94.392 | F8: 1.51 | G8: =B8*F8 -> 6.946 | H8: =G8*12 -> 83.352 | I8: 1.25 | J8: =B8*I8 -> 5.75 | K8: =J8*12 -> 69 | L8: 1.15 | M8: =B8*L8 -> 5.29 | N8: =M8*12 -> 63.48
A9: Sceau de 24Kg
A10: Fût de 300KG | T10: 1.27 | U10: =B10*T10 -> 0 | V10: =U10*300 -> 0 | W10: 1.2 | X10: =B10*W10 -> 0 | Y10: =X10*300 -> 0 | Z10: 1.14 | AA10: =B10*Z10 -> 0 | AB10: =AA10*300 -> 0
A12: Tarif H.T - Livraison non comprise , nous consulter

Sheet Néflier
A1: Miel Néflier
D3: Carton de 12 Unités | O3: Sceau de 24Kg | T3: Fût de 300 Kg
A4: Quantité | B4: Prix D'achat | C4: 1 | G4: de 2 à 5 | J4: de 6 à 10 | M4: Plus de 10 | O4: Coef. | P4: 1 | Q4: de 2 à 6 | R4: de 6 à 10 | S4: Plus de 10 | T4: 1 | W4: 2 | Z4: 3
C5: Coef. | D5: Prix unité | E5: Prix carton | F5: Coef. | G5: Prix unité | H5: Prix carton | I5: Coef. | J5: Prix unité | K5: Prix carton | L5: Coef. | M5: Prix unité | N5: Prix carton | P5: Prix unité | Q5: Prix unité | R5: Prix unité | S5: Prix unité | T5: Coef. | U5: Prix Kg | V5: Prix Fût | W5: Coef. | X5: Prix Kg | Y5: Prix Fût | Z5: Coef. | AA5: Prix Kg | AB5: Prix Fût
A6: Pot 250g | C6: 1.71 | D6: =B6*C6 -> 0 | E6: =D6*12 -> 0 | F6: 1.51 | G6: =B6*F6 -> 0 | H6: =G6*12 -> 0 | I6: 1.25 | J6: =B6*I6 -> 0 | K6: =J6*12 -> 0 | L6: 1.15 | M6: =B6*L6 -> 0 | N6: =M6*12 -> 0
A7: Pot 500g | B7: 2.5 | C7: 1.71 | D7: =B7*C7 -> 4.275 | E7: =D7*12 -> 51.3 | F7: 1.51 | G7: =B7*F7 -> 3.775 | H7: =G7*12 -> 45.3 | I7: 1.25 | J7: =B7*I7 -> 3.125 | K7: =J7*12 -> 37.5 | L7: 1.15 | M7: =B7*L7 -> 2.875 | N7: =M7*12 -> 34.5
A8: Pot 1kg | B8: 4.6 | C8: 1.71 | D8: =B8*C8 -> 7.866 | E8: =D8*12 -> 94.392 | F8: 1.51 | G8: =B8*F8 -> 6.946 | H8: =G8*12 -> 83.352 | I8: 1.25 | J8: =B8*I8 -> 5.75 | K8: =J8*12 -> 69 | L8: 1.15 | M8: =B8*L8 -> 5.29 | N8: =M8*12 -> 63.48
A9: Sceau de 24Kg
A10: Fût de 300KG | T10: 1.27 | U10: =B10*T10 -> 0 | V10: =U10*300 -> 0 | W10: 1.2 | X10: =B10*W10 -> 0 | Y10: =X10*300 -> 0 | Z10: 1.14 | AA10: =B10*Z10 -> 0 | AB10: =AA10*300 -> 0
A12: Tarif H.T - Livraison non comprise , nous consulter

Sheet Miel_aux_Noix
A1: Miel d'oranger plus cerneaux de noix
D3: Carton de 12 Unités | O3: Sceau de 24Kg | T3: Fût de 300 Kg
A4: Quantité | B4: Prix D'achat | C4: 1 | G4: de 2 à 5 | J4: de 6 à 10 | M4: Plus de 10 | O4: Coef. | P4: 1 | Q4: de 2 à 6 | R4: de 6 à 10 | S4: Plus de 10 | T4: 1 | W4: 2 | Z4: 3
C5: Coef. | D5: Prix unité | E5: Prix carton | F5: Coef. | G5: Prix unité | H5: Prix carton | I5: Coef. | J5: Prix unité | K5: Prix carton | L5: Coef. | M5: Prix unité | N5: Prix carton | P5: Prix unité | Q5: Prix unité | R5: Prix unité | S5: Prix unité | T5: Coef. | U5: Prix Kg | V5: Prix Fût | W5: Coef. | X5: Prix Kg | Y5: Prix Fût | Z5: Coef. | AA5: Prix Kg | AB5: Prix Fût
A6: Pot 250g | B6: 0 | C6: 1.71 | D6: =B6*C6 -> 0 | E6: =D6*12 -> 0 | F6: 1.51 | G6: =B6*F6 -> 0 | H6: =G6*12 -> 0 | I6: 1.25 | J6: =B6*I6 -> 0 | K6: =J6*12 -> 0 | L6: 1.15 | M6: =B6*L6 -> 0 | N6: =M6*12 -> 0
A7: Pot 500g | B7: 3.4 | C7: 1.71 | D7: =B7*C7 -> 5.814 | E7: =D7*12 -> 69.768 | F7: 1.51 | G7: =B7*F7 -> 5.134 | H7: =G7*12 -> 61.608 | I7: 1.25 | J7: =B7*I7 -> 4.25 | K7: =J7*12 -> 51 | L7: 1.15 | M7: =B7*L7 -> 3.91 | N7: =M7*12 -> 46.92
A8: Pot 1kg | B8: 5.65 | C8: 1.71 | D8: =B8*C8 -> 9.6615 | E8: =D8*12 -> 115.938 | F8: 1.51 | G8: =B8*F8 -> 8.5315 | H8: =G8*12 -> 102.378 | I8: 1.25 | J8: =B8*I8 -> 7.0625 | K8: =J8*12 -> 84.75 | L8: 1.15 | M8: =B8*L8 -> 6.4975 | N8: =M8*12 -> 77.97
A9: Sceau de 24Kg
A10: Fût de 300KG | T10: 1.27 | U10: =B10*T10 -> 0 | V10: =U10*300 -> 0 | W10: 1.2 | X10: =B10*W10 -> 0 | Y10: =X10*300 -> 0 | Z10: 1.14 | AA10: =B10*Z10 -> 0 | AB10: =AA10*300 -> 0
A12: Tarif H.T - Livraison non comprise , nous consulter

Sheet gelée_Royale
A1: Gelée Royale
D3: Carton de 12 Unités | O3: Sceau de 24Kg | T3: Fût de 300 Kg
A4: Quantité | B4: Prix D'achat | C4: 1 | G4: de 2 à 5 | J4: de 6 à 10 | M4: Plus de 10 | O4: Coef. | P4: 1 | Q4: de 2 à 6 | R4: de 6 à 10 | S4: Plus de 10 | T4: 1 | W4: 2 | Z4: 3
C5: Coef. | D5: Prix unité | E5: Prix carton | F5: Coef. | G5: Prix unité | H5: Prix carton | I5: Coef. | J5: Prix unité | K5: Prix carton | L5: Coef. | M5: Prix unité | N5: Prix carton | P5: Prix unité | Q5: Prix unité | R5: Prix unité | S5: Prix unité | T5: Coef. | U5: Prix Kg | V5: Prix Fût | W5: Coef. | X5: Prix Kg | Y5: Prix Fût | Z5: Coef. | AA5: Prix Kg | AB5: Prix Fût
A6: Pot de 250g + 10g de gelée | B6: 2.7 | C6: 1.71 | D6: =B6*C6 -> 4.617 | E6: =D6*12 -> 55.404 | F6: 1.51 | G6: =B6*F6 -> 4.077 | H6: =G6*12 -> 48.924 | I6: 1.25 | J6: =B6*I6 -> 3.375 | K6: =J6*12 -> 40.5 | L6: 1.15 | M6: =B6*L6 -> 3.105 | N6: =M6*12 -> 37.26
A7: Pot 500g | B7: 0 | C7: 1.71 | D7: =B7*C7 -> 0 | E7: =D7*12 -> 0 | F7: 1.51 | G7: =B7*F7 -> 0 | H7: =G7*12 -> 0 | I7: 1.25 | J7: =B7*I7 -> 0 | K7: =J7*12 -> 0 | L7: 1.15 | M7: =B7*L7 -> 0 | N7: =M7*12 -> 0
A8: Pot 1kg | B8: 0 | C8: 1.71 | D8: =B8*C8 -> 0 | E8: =D8*12 -> 0 | F8: 1.51 | G8: =B8*F8 -> 0 | H8: =G8*12 -> 0 | I8: 1.25 | J8: =B8*I8 -> 0 | K8: =J8*12 -> 0 | L8: 1.15 | M8: =B8*L8 -> 0 | N8: =M8*12 -> 0
A9: Sceau de 24Kg
A10: Fût de 300KG | T10: 1.27 | U10: =B10*T10 -> 0 | V10: =U10*300 -> 0 | W10: 1.2 | X10: =B10*W10 -> 0 | Y10: =X10*300 -> 0 | Z10: 1.14 | AA10: =B10*Z10 -> 0 | AB10: =AA10*300 -> 0
A12: Tarif H.T - Livraison non comprise , nous consulter

Sheet Clients
A1: Code | B1: Civilité | C1: Nom | D1: Prénom | E1: Adresse | F1: Adresse(suite) | G1: CP | H1: Ville | I1: téléphone Fixe | J1: Portable | K1: Mail | L1: Contact | M1: Mode de paiement | O1: C.A | P1: ENCOURS
A2: 411000001 | B2: Sté | C2: COTE GARRIGUE | E2: 88, Avenue des Logissons | G2: 13770 | H2: VENELLES | I2: 04 42 54 84 60 | K2: contact@cote-garrigue.com | L2: Mr ILTIS Michel | M2: Virement
A3: 411000002 | B3: Mr | C3: RESSICAUD | D3: Nicolas | E3: 526, Chemin du panorama | G3: 69300 | H3: CALUIRE ET CUIRE | J3: 06 63 79 16 44 | K3: ress.nico@hotmail.fr | L3: Mr RESSICAUD Nicolas | M3: Virement
A4: 411000003 | B4: Sté | C4: DOUCEUR MIEL MD CHAMAK | E4: 724, Route de Cagnes | G4: 6480 | H4: LA COLLE SUR LOUP | I4: 04 93 32 67 13 | J4: 06 61 44 15 10 | K4: mikecarette165@gmail.com | L4: Mr CARETTE Mike | M4: Virement | N4: x
A5: 411000004 | B5: Mr | C5: KAROUBI | D5: Pierre | E5: 98, Rue de Marsanne | G5: 30127 | H5: BELLEGARDE | I5: 04 66 29 54 74 | J5: 06 63 34 33 32 | K5: pierre-karoubi@aliceadsl.fr | L5: Mr KAROUBI Pierre | M5: Virement
A6: 411000005 | B6: Sté | C6: APIVELAY | E6: Rue aAntoine Valette | G6: 43000 | H6: Le Puy en VELAY | K6: apivelay@wanadoo.fr | L6: Robin Arnaud | M6: Virement

Sheet Commandes
A1: N° Commande | B1: Date | C1: Code Client | D1: Nom Client | E1: MontantHT | F1: Marge | G1: Commercial | H1: Mode de règlement | I1: Date règlement | J1: Statut | K1: Port
A2: CT000001 | B2: 2014-01-20 | C2: 411000004 | D2: KAROUBI | E2: 376.782 | F2: 42.102 | G2: Eric | H2: Virement

Sheet Details_C
A1: Code Client | B1: N° | C1: Date | D1: Miels | E1: cond. | F1: Qte de carton | G1: Nbre d'unité | H1: Prix unitaire | I1: Prix au carton | J1: Total | K1: Prix D'achat Unitaire | L1: Marge Brute | M1: Commercial | N1: Livré | O1: Date Livraison | P1: N° BL | Q1: N° Facture | R1: Date Facture
A2: 411000004 | B2: CT000001 | C2: 2014-01-20 | D2: Lavande | E2: Pot de 250g | F2: 1 | G2: 12 | H2: 2.14 | I2: 25.68 | J2: 25.68 | K2: 1.9 | L2: 2.88 | M2: Eric | N2: x | O2: =IF(N2="x",TODAY(),"") -> 2014-01-24
A3: 411000004 | B3: CT000001 | C3: 2014-01-20 | D3: Romarin | E3: Pot de 250g | F3: 1 | G3: 12 | H3: 2.14 | I3: 25.68 | J3: 25.68 | K3: 1.9 | L3: 2.88 | M3: Eric | N3: x | O3: =IF(N3="x",TODAY(),"") -> 2014-01-24
A4: 411000004 | B4: CT000001 | C4: 2014-01-20 | D4: Thym | E4: Pot de 250g | F4: 1 | G4: 12 | H4: 2.14 | I4: 25.68 | J4: 25.68 | K4: 1.9 | L4: 2.88 | M4: Eric | N4: x | O4: 2014-01-24
A5: 411000004 | B5: CT000001 | C5: 2014-01-20 | D5: Eucalyptus | E5: Pot de 250g | F5: 1 | G5: 12 | H5: 2.14 | I5: 25.68 | J5: 25.68 | K5: 1.9 | L5: 2.88 | M5: Eric | N5: x | O5: 2014-01-24
A6: 411000004 | B6: CT000001 | C6: 2014-01-20 | D6: Bruyère | E6: Pot de 250g | F6: 1 | G6: 12 | H6: 2.14 | I6: 25.68 | J6: 25.68 | K6: 1.9 | L6: 2.88 | M6: Eric | N6: x | O6: 2014-01-24
A7: 411000004 | B7: CT000001 | C7: 2014-01-20 | D7: Pommier | E7: Pot de 250g | F7: 1 | G7: 12 | H7: 2.3585 | I7: 28.302 | J7: 28.302 | K7: 2.09 | L7: 3.222 | M7: Eric | N7: x | O7: 2014-01-24
A8: 411000004 | B8: CT000001 | C8: 2014-01-20 | D8: Citronnier | E8: Pot de 500g | F8: 1 | G8: 12 | H8: 3.475 | I8: 41.7 | J8: 41.7 | K8: 3.1 | L8: 4.5 | M8: Eric | N8: x | O8: 2014-01-24
A9: 411000004 | B9: CT000001 | C9: 2014-01-20 | D9: Amandier | E9: Pot de 500g | F9: 1 | G9: 12 | H9: 3.475 | I9: 41.7 | J9: 41.7 | K9: 3.1 | L9: 4.5 | M9: Eric
A10: 411000004 | B10: CT000001 | C10: 2014-01-20 | D10: Néflier | E10: Pot de 500g | F10: 1 | G10: 12 | H10: 3.475 | I10: 41.7 | J10: 41.7 | K10: 3.1 | L10: 4.5 | M10: Eric
A11: 411000004 | B11: CT000001 | C11: 2014-01-20 | D11: Miel_aux_Noix | E11: Pot de 500g | F11: 1 | G11: 12 | H11: 4.51 | I11: 54.12 | J11: 54.12 | K11: 4 | L11: 6.12 | M11: Eric
A12: 411000004 | B12: CT000001 | C12: 2014-01-20 | D12: Gelée_royale | E12: Pot de 250g | F12: 1 | G12: 12 | H12: 3.405 | I12: 40.86 | J12: 40.86 | K12: 3 | L12: 4.86 | M12: Eric

Sheet Livraison

Sheet Factures

Sheet DOC
D9: =CONCATENATE(VLOOKUP(INDIRECT("Cotation!M2"),INDIRECT("Clients!Clients"),2)," ",VLOOKUP(INDIRECT("Cotation!M2"),INDIRECT("Clients!Clients"),3)," ",VLOOKUP(INDIRECT("Cotation!M2"),INDIRECT("Clients!Clients"),4)) -> 
D10: =VLOOKUP(INDIRECT("Cotation!M2"),INDIRECT("Clients!Clients"),5) -> 
D11: =IF(VLOOKUP(INDIRECT("Cotation!M2"),INDIRECT("Clients!Clients"),6)="",CONCATENATE(VLOOKUP(INDIRECT("Cotation!M2"),INDIRECT("Clients!Clients"),7)," ",VLOOKUP(INDIRECT("Cotation!M2"),INDIRECT("Clients!Clients"),8)),VLOOKUP(INDIRECT("Cotation!M2"),INDIRECT("Clients!Clients"),6)) -> 
A14: =CONCATENATE("Devis N° :"," ",Cotation!N2) -> Devis N° : CT000002
A16: Votre N° TVA/ Intracom. | B16: Code Client | D16: Date | F16: Échéance | H16: Mode
B17: =Cotation!M2 -> 0 | D17: =Cotation!O2 -> 2014-01-24 | F17: =D17+30 -> 2014-02-23 | H17: =Cotation!Q2 -> Virement
A18: Désignation | B18: Cond. | C18: Qte de carton | D18: Nbre d'unité | E18: Prix unitaire | F18: Prix au carton | G18: Total | H18: Taux tva
E52: RECAPITULATIF
A53: N° DE COMPTE à Utiliser pour les virements | E53: PORT ht
E54: TVA / port
E55: TOTAL ht | G55: =SUM(G19:G50) -> 0
E56: TOTAL tva
E57: TOTAL ttc | G57: =G55+G56 -> 0
E58: Tous les montants sont exprimés en euros
A60: DUREE DE VALIDITE DE L'OFFRE : 1 MOIS

Sheet Port
A1: 1 | B1: =A1+1 -> 2 | C1: 3 | D1: 4 | E1: 5 | F1: 6 | G1: 7 | H1: 8 | I1: 9 | J1: 10 | K1: 11 | L1: 12 | M1: 13 | N1: 14 | O1: 15 | P1: 16 | Q1: 17
D2: PRIX FORFAITAIRES | N2: PRIX aux 100 Kgs | U2: département | V2: 29 ILES | W2: port
D3: 9 | E3: 19 | F3: 29 | G3: 39 | H3: 49 | I3: 59 | J3: 69 | K3: 79 | L3: 89 | M3: 99 | N3: 499 | O3: 999 | P3: 1999 | Q3: 3000 | U3: poids | V3: 69.5 | W3: =INDIRECT(ADDRESS(MATCH(V2,A4:A112)+3,VLOOKUP($V$3,$U$5:$V$18,2,1),3,1,"Port"),1) -> 56.39592
A4: 01 | B4: Ain | C4: 10 | D4: 14.01642 | E4: 15.71384 | F4: 17.41126 | G4: 19.29768 | H4: 22.8126 | I4: 24.91002 | J4: 28.23594 | K4: 30.33336 | L4: 33.32178 | M4: 35.4192 | N4: 33.151755 | O4: 29.8518225 | P4: 26.06346 | Q4: 22.8585
A5: 02 | B5: Aisne | C5: 20 | D5: 15.32349 | E5: 18.32798 | F5: 21.33247 | G5: 24.52596 | H5: 29.34795 | I5: 32.75244 | J5: 37.38543 | K5: 40.78992 | L5: 45.08541 | M5: 48.4899 | N5: 46.222455 | O5: 42.9225225 | P5: 37.97316 | Q5: 34.7682 | U5: 0 | V5: 4
A6: 03 | B6: Allier | C6: 30 | D6: 16.93242 | E6: 18.86609 | F6: 20.79976 | G6: 22.96968 | H6: 27.075225 | I6: 29.408895 | J6: 33.27819 | K6: 35.61186 | L6: 39.05928 | M6: 41.39295 | N6: 38.85864375 | O6: 34.88372813 | P6: 30.298275 | Q6: 26.442075 | U6: 9.01 | V6: 5
A7: 04 | B7: Alpes Hte Pro. | C7: 40 | D7: 14.13576 | E7: 17.62652 | F7: 20.83378 | G7: 23.63604 | H7: 26.7033 | I7: 29.08206 | J7: 33.10782 | K7: 37.40358 | L7: 41.71284 | M7: 44.3616 | N7: 41.2446 | O7: 40.6446 | P7: 40.0446 | Q7: 39.4446 | U7: 19.01 | V7: 6
A8: 04HM | B8: Alpes Hte Pro. HM | C8: 42 | D8: 17.33526 | E8: 20.75852 | F8: 24.39778 | G8: 28.07754 | H8: 31.7523 | I8: 34.40106 | J8: 37.60332 | K8: 42.74958 | L8: 47.72034 | M8: 51.0576 | N8: 47.2791 | O8: 46.6791 | P8: 46.0791 | Q8: 45.4791 | U8: 29.01 | V8: 7
A9: 05 | B9: Hautes Alpes | C9: 50 | D9: 15.015285 | E9: 18.68357 | F9: 22.230355 | G9: 25.23714 | H9: 28.387425 | I9: 31.01121 | J9: 35.200995 | K9: 39.76878 | L9: 44.444565 | M9: 47.25735 | N9: 43.93785 | O9: 43.33785 | P9: 42.73785 | Q9: 42.13785 | U9: 39.01 | V9: 8
A10: 05HM | B10: Hautes Alpes HM | C10: 52 | D10: 17.472285 | E10: 21.03257 | F10: 24.822355 | G10: 28.62564 | H10: 32.437425 | I10: 35.22321 | J10: 38.575995 | K10: 43.84578 | L10: 48.953565 | M10: 52.42785 | N10: 48.64935 | O10: 48.04935 | P10: 47.44935 | Q10: 46.84935 | U10: 49.01 | V10: 9
A11: 06 | B11: Alpes Maritimes | C11: 60 | D11: 13.7535 | E11: 15.715 | F11: 17.9235 | G11: 19.677 | H11: 22.3115 | I11: 24.387 | J11: 26.4885 | K11: 28.863 | L11: 32.1215 | M11: 35.055 | N11: 31.888945 | O11: 29.5513 | P11: 26.02474 | Q11: 23.242885 | U11: 59.01 | V11: 10
A12: 06HM | B12: Alpes Maritimes HM | C12: 62 | D12: 29.31975 | E12: 33.293 | F12: 38.67025 | G12: 41.6985 | H12: 45.57225 | I12: 49.1625 | J12: 52.80675 | K12: 56.937 | L12: 60.72975 | M12: 64.8735 | N12: 56.937 | O12: 48.615 | P12: 42.21 | Q12: 36.2505 | U12: 69.01 | V12: 11
A13: 98 | B13: Monaco | C13: 62 | D13: 16.44075 | E13: 18.5915 | F13: 21.03925 | G13: 22.92 | H13: 25.80825 | I13: 27.9945 | J13: 30.22125 | K13: 32.7855 | L13: 36.44325 | M13: 39.7095 | N13: 36.059493 | O13: 33.29412 | P13: 29.047176 | Q13: 25.728249 | U13: 79.01 | V13: 12
A14: 07 | B14: Ardèche | C14: 70 | D14: 12.88666 | E14: 13.85132 | F14: 14.81598 | G14: 15.96264 | H14: 18.6923 | I14: 20.05696 | J14: 22.60462 | K14: 23.96928 | L14: 26.19194 | M14: 27.5566 | N14: 25.32869 | O14: 22.128755 | P14: 18.45848 | Q14: 15.35 | U14: 89.01 | V14: 13
A15: 08 | B15: Ardennes | C15: 80 | D15: 16.466265 | E15: 19.54163 | F15: 22.616995 | G15: 25.90026 | H15: 30.934875 | I15: 34.41024 | J15: 39.236955 | K15: 42.71232 | L15: 47.167785 | M15: 50.64315 | N15: 48.2689605 | O15: 44.69903475 | P15: 39.363336 | Q15: 35.89788 | U15: 99.01 | V15: 14
A16: 09 | B16: Ariège | C16: 90 | D16: 14.462325 | E16: 15.83615 | F16: 17.209975 | G16: 18.7998 | H16: 22.099125 | I16: 23.87295 | J16: 26.942775 | K16: 28.7166 | L16: 31.475925 | M16: 33.24975 | N16: 31.69875 | O16: 28.03425 | P16: 23.81625 | Q16: 23.21625 | U16: 499.01 | V16: 15
A17: 10 | B17: Aube | C17: 100 | D17: 14.926995 | E17: 17.53499 | F17: 20.142985 | G17: 22.93998 | H17: 27.365475 | I17: 30.37347 | J17: 34.609965 | K17: 37.61796 | L17: 41.516955 | M17: 44.52495 | N17: 42.257505 | O17: 35.6325225 | P17: 30.75066 | Q17: 27.5457 | U17: 999.01 | V17: 16
A18: 11 | B18: Aude | C18: 110 | D18: 13.0827 | E18: 15.1014 | F18: 16.5871 | G18: 18.9308 | H18: 20.6735 | I18: 23.1962 | J18: 25.7189 | K18: 28.1116 | L18: 30.2443 | M18: 32.247 | N18: 31.567 | O18: 30.967 | P18: 27.767 | Q18: 27.167 | U18: 1999.01 | V18: 17
A19: 12 | B19: Aveyron | C19: 120 | D19: 13.7745 | E19: 15.257 | F19: 16.7395 | G19: 18.411 | H19: 21.711 | I19: 23.5935 | J19: 26.7045 | K19: 28.587 | L19: 31.3605 | M19: 33.243 | N19: 31.2465 | O19: 25.25325 | P19: 21.41325 | Q19: 18.16725 | U19: 3000.01
A20: 13 | B20: Bches du Rhône | C20: 130 | D20: 15.63148 | E20: 16.76046 | F20: 17.88944 | G20: 19.24592 | H20: 22.48115 | I20: 24.01013 | J20: 27.01786 | K20: 28.54684 | L20: 31.14832 | M20: 32.6773 | N20: 30.1924125 | O20: 26.34249375 | P20: 21.90465 | Q20: 18.16905
A21: 14 | B21: Calvados | C21: 140 | D21: 16.14429 | E21: 20.26658 | F21: 25.15837 | G21: 30.02316 | H21: 33.81645 | I21: 38.33874 | J21: 42.11853 | K21: 46.64082 | L21: 51.17661 | M21: 55.20966 | N21: 53.6484 | O21: 48.0129 | P21: 43.5384 | Q21: 39.0369
A22: 15 | B22: Cantal | C22: 150 | D22: 11.59965 | E22: 14.0663 | F22: 16.08745 | G22: 17.9601 | H22: 20.55675 | I22: 22.9644 | J22: 25.43955 | K22: 27.5502 | L22: 30.55185 | M22: 32.622 | N22: 31.0035 | O22: 28.4595 | P22: 25.9425 | Q22: 25.3425
A23: 16 | B23: Charentes | C23: 160 | D23: 16.36677 | E23: 18.91604 | F23: 21.08731 | G23: 23.69058 | H23: 25.46535 | I23: 28.84662 | J23: 31.63389 | K23: 34.43466 | L23: 36.89793 | M23: 39.5907 | N23: 36.4737 | O23: 34.7667 | P23: 32.3037 | Q23: 31.7037
A24: 17 | B24: Charentes Marit. | C24: 170 | D24: 15.23277 | E24: 19.63154 | F24: 21.82981 | G24: 24.51408 | H24: 26.77485 | I24: 29.21112 | J24: 32.38989 | K24: 35.59566 | L24: 38.93643 | M24: 42.1152 | N24: 38.4852 | O24: 36.8592 | P24: 32.9517 | Q24: 32.3517
A25: 17 ILES | B25: Charentes Marit. ILES | C25: 172 | D25: 18.83727 | E25: 23.07404 | F25: 25.75831 | G25: 28.01058 | H25: 31.67535 | I25: 35.27262 | J25: 37.22289 | K25: 39.91566 | L25: 42.87843 | M25: 46.0842 | N25: 44.4522 | O25: 43.8522 | P25: 40.4442 | Q25: 39.8442
A26: 18 | B26: Cher | C26: 180 | D26: 15.184305 | E26: 18.04961 | F26: 20.914915 | G26: 23.96922 | H26: 28.652025 | I26: 31.91733 | J26: 36.411135 | K26: 39.67644 | L26: 43.832745 | M26: 47.09805 | N26: 44.830605 | O26: 38.0557725 | P26: 33.17391 | Q26: 29.96895
A27: 19 | B27: Corrèze | C27: 190 | D27: 13.94865 | E27: 15.5783 | F27: 17.20795 | G27: 19.0266 | H27: 22.47375 | I27: 24.5034 | J27: 27.76155 | K27: 29.7912 | L27: 32.71185 | M27: 34.7415 | N27: 32.474055 | O27: 29.1741225 | P27: 25.38576 | Q27: 22.1808
A28: 20 | B28: Corse | C28: 200 | D28: 26.27082 | E28: 33.80564 | F28: 47.74946 | G28: 49.16428 | H28: 55.5691 | I28: 57.38392 | J28: 66.71274 | K28: 68.52756 | L28: 79.11438 | M28: 80.9292 | N28: 70.5832 | O28: 58.2532 | P28: 47.9122 | Q28: 47.3122
A29: 21 | B29: Côte d'Or | C29: 210 | D29: 13.80043 | E29: 15.67886 | F29: 17.55729 | G29: 19.61772 | H29: 23.26115 | I29: 25.53958 | J29: 29.00101 | K29: 31.27944 | L29: 34.41587 | M29: 36.6943 | N29: 34.46639 | O29: 31.266455 | P29: 26.54318 | Q29: 23.4347
A30: 22 | B30: Cotes d'Armor | C30: 220 | D30: 15.59646 | E30: 18.87392 | F30: 22.15138 | G30: 25.61784 | H30: 30.7128 | I30: 34.39026 | J30: 39.29622 | K30: 42.97368 | L30: 47.54214 | M30: 51.2196 | N30: 48.952155 | O30: 40.1165475 | P30: 35.234685 | Q30: 32.029725
A31: 22 ILES | B31: Cotes d'Armor ILES | C31: 222 | D31: 23.22396 | E31: 26.50142 | F31: 29.77888 | G31: 33.32634 | H31: 39.6903 | I31: 43.36776 | J31: 49.77222 | K31: 53.44968 | L31: 59.73264 | M31: 63.4101 | N31: 61.0626 | O31: 50.134425 | P31: 42.271425 | Q31: 36.433425
A32: 23 | B32: Creuse | C32: 230 | D32: 18.04482 | E32: 20.96264 | F32: 23.88046 | G32: 28.08078 | H32: 33.6666 | I32: 36.98442 | J32: 43.00224 | K32: 46.32006 | L32: 51.82488 | M32: 55.1427 | N32: 54.6717 | O32: 45.609225 | P32: 39.676725 | Q32: 37.713225
A33: 24 | B33: Dordogne | C33: 240 | D33: 13.96377 | E33: 15.60854 | F33: 17.25331 | G33: 19.08708 | H33: 22.54935 | I33: 24.59412 | J33: 27.86739 | K33: 29.91216 | L33: 32.84793 | M33: 34.8927 | N33: 32.625255 | O33: 29.3253225 | P33: 25.53696 | Q33: 22.332
A34: 25 | B34: Doubs | C34: 240 | D34: 14.06367 | E34: 15.80834 | F34: 17.55301 | G34: 19.48668 | H34: 23.04885 | I34: 25.19352 | J34: 28.56669 | K34: 30.71136 | L34: 33.74703 | M34: 35.8917 | N34: 33.624255 | O34: 30.3243225 | P34: 26.53596 | Q34: 23.331
A35: 26 | B35: Drôme | C35: 240 | D35: 12.63771 | E35: 13.35342 | F35: 14.06913 | G35: 14.96684 | H35: 17.44755 | I35: 18.56326 | J35: 20.86197 | K35: 21.97768 | L35: 23.95139 | M35: 25.0671 | N35: 22.83919 | O35: 19.639255 | P35: 15.96898 | Q35: 12.8605
A36: 27 | B36: Eure | C36: 240 | D36: 15.80409 | E36: 20.53118 | F36: 26.41927 | G36: 31.67286 | H36: 36.09795 | I36: 41.37354 | J36: 45.79863 | K36: 51.38472 | L36: 55.80981 | M36: 61.5309 | N36: 58.1709 | O36: 53.3184 | P36: 44.6049 | Q36: 44.0049
A37: 28 | B37: Eure et Loire | C37: 240 | D37: 15.45066 | E37: 18.58232 | F37: 21.71398 | G37: 25.03464 | H37: 29.9838 | I37: 33.51546 | J37: 38.27562 | K37: 41.80728 | L37: 46.22994 | M37: 49.7616 | N37: 47.494155 | O37: 38.2683975 | P37: 33.386535 | Q37: 30.181575
A38: 29 | B38: Finistère | C38: 240 | D38: 15.96474 | E38: 19.61048 | F38: 23.25622 | G38: 27.09096 | H38: 32.5542 | I38: 36.59994 | J38: 41.87418 | K38: 45.91992 | L38: 50.85666 | M38: 54.9024 | N38: 52.634955 | O38: 41.9579475 | P38: 37.076085 | Q38: 33.871125
A39: 29 ILES | B39: Finistère HM | C39: 292 | D39: 23.59224 | E39: 27.23798 | F39: 30.88372 | G39: 34.79946 | H39: 41.5317 | I39: 45.57744 | J39: 52.35018 | K39: 56.39592 | L39: 63.04716 | M39: 67.0929 | N39: 64.7454 | O39: 51.975825 | P39: 44.112825 | Q39: 38.274825
A40: 30 | B40: Gard | C40: 300 | D40: 12.88666 | E40: 13.85132 | F40: 14.81598 | G40: 15.96264 | H40: 18.6923 | I40: 20.05696 | J40: 22.60462 | K40: 23.96928 | L40: 26.19194 | M40: 27.5566 | N40: 25.32869 | O40: 22.128755 | P40: 18.45848 | Q40: 15.35
A41: 31 | B41: Hte Garonne | C41: 310 | D41: 13.4909 | E41: 14.0276 | F41: 14.5643 | G41: 15.3012 | H41: 17.7394 | I41: 18.6761 | J41: 20.9141 | K41: 21.8508 | L41: 23.7313 | M41: 24.668 | N41: 22.337299 | O41: 18.8773705 | P41: 14.900068 | Q41: 11.54074
A42: 32 | B42: Gers | C42: 320 | D42: 13.04415 | E42: 13.9988 | F42: 16.10095 | G42: 18.4866 | H42: 20.71875 | I42: 22.6404 | J42: 25.43955 | K42: 27.4287 | L42: 29.62035 | M42: 29.62035 | N42: 27.939 | O42: 27.339 | P42: 23.5125 | Q42: 20.9955
A43: 33 | B43: Gironde | C43: 330 | D43: 13.89546 | E43: 14.83672 | F43: 15.77798 | G43: 16.91944 | H43: 19.7622 | I43: 21.10346 | J43: 23.74602 | K43: 25.08728 | L43: 27.37234 | M43: 28.7136 | N43: 26.382899 | O43: 22.9229705 | P43: 18.945668 | Q43: 15.58634
A44: 34 | B44: Hérault | C44: 340 | D44: 13.86101 | E44: 15.65702 | F44: 17.75203 | G44: 18.50804 | H44: 19.50805 | I44: 20.67706 | J44: 21.67707 | K44: 22.82008 | L44: 23.67709 | M44: 24.5341 | N44: 23.3341 | O44: 21.1091 | P44: 15.5821 | Q44: 11.6801
A45: 35 | B45: Ille et Vilaine | C45: 350 | D45: 15.24033 | E45: 18.16166 | F45: 21.08299 | G45: 24.19332 | H45: 28.93215 | I45: 32.25348 | J45: 36.80331 | K45: 40.12464 | L45: 44.33697 | M45: 47.6583 | N45: 45.390855 | O45: 38.3358975 | P45: 33.454035 | Q45: 30.249075
A46: 36 | B46: Indre | C46: 360 | D46: 15.050115 | E46: 17.78123 | F46: 20.512345 | G46: 23.43246 | H46: 27.981075 | I46: 31.11219 | J46: 35.471805 | K46: 38.60292 | L46: 42.625035 | M46: 45.75615 | N46: 43.488705 | O46: 37.3848225 | P46: 32.50296 | Q46: 29.298
A47: 37 | B47: Indre & Loire | C47: 370 | D47: 14.489325 | E47: 16.65965 | F47: 18.829975 | G47: 21.1893 | H47: 25.177125 | I47: 27.74745 | J47: 31.546275 | K47: 34.1166 | L47: 37.577925 | M47: 40.14825 | N47: 37.880805 | O47: 34.5808725 | P47: 29.69901 | Q47: 26.49405
A48: 38 | B48: Isère | C48: 380 | D48: 15.112485 | E48: 17.12297 | F48: 19.133455 | G48: 21.35994 | H48: 25.282425 | I48: 27.69291 | J48: 31.426395 | K48: 33.83688 | L48: 37.219365 | M48: 39.62985 | N48: 38.06535 | O48: 34.41435 | P48: 30.18285 | Q48: 26.63985
A49: 38HM | B49: Isère HM | C49: 382 | D49: 23.833485 | E49: 25.84397 | F49: 27.854455 | G49: 30.17544 | H49: 35.542425 | I49: 37.95291 | J49: 43.360395 | K49: 45.77088 | L49: 51.124365 | M49: 53.53485 | N49: 51.59235 | O49: 45.60585 | P49: 38.05335 | Q49: 31.54035
A50: 39 | B50: Jura | C50: 390 | D50: 14.06367 | E50: 15.80834 | F50: 17.55301 | G50: 19.48668 | H50: 23.04885 | I50: 25.19352 | J50: 28.56669 | K50: 30.71136 | L50: 33.74703 | M50: 35.8917 | N50: 33.624255 | O50: 30.3243225 | P50: 26.53596 | Q50: 23.331
A51: 40 | B51: Landes | C51: 400 | D51: 11.72925 | E51: 13.961 | F51: 17.40775 | G51: 20.2875 | H51: 22.43325 | I51: 25.2405 | J51: 27.38625 | K51: 30.693 | L51: 32.83875 | M51: 36.1725 | N51: 34.9725 | O51: 28.5 | P51: 27.9 | Q51: 25.086
A52: 41 | B52: Loir et Cher | C52: 410 | D52: 14.99193 | E52: 17.66486 | F52: 20.33779 | G52: 23.19972 | H52: 27.69015 | I52: 30.76308 | J52: 35.06451 | K52: 38.13744 | L52: 42.10137 | M52: 45.1743 | N52: 42.906855 | O52: 37.0938975 | P52: 32.212035 | Q52: 29.007075
A53: 42 | B53: Loire | C53: 420 | D53: 13.23369 | E53: 14.60738 | F53: 15.98107 | G53: 17.54376 | H53: 20.65395 | I53: 22.42764 | J53: 25.36233 | K53: 27.13602 | L53: 29.81421 | M53: 31.5879 | N53: 30.0369 | O53: 26.7099 | P53: 22.9104 | Q53: 19.6644
A54: 43 | B54: Hte Loire | C54: 430 | D54: 14.63067 | E54: 16.78034 | F54: 18.45751 | G54: 20.52618 | H54: 23.07585 | I54: 25.55802 | J54: 29.03919 | K54: 32.42586 | L54: 35.04303 | M54: 37.8357 | N54: 36.6357 | O54: 28.2057 | P54: 25.7967 | Q54: 25.1967
A55: 44 | B55: Loire Atlantique | C55: 440 | D55: 15.141645 | E55: 17.96429 | F55: 20.786935 | G55: 23.79858 | H55: 28.438725 | I55: 31.66137 | J55: 36.112515 | K55: 39.33516 | L55: 43.448805 | M55: 46.67145 | N55: 44.404005 | O55: 37.8424725 | P55: 32.96061 | Q55: 29.75565
A56: 45 | B56: Loiret | C56: 450 | D56: 15.900615 | E56: 18.63173 | F56: 21.362845 | G56: 24.29646 | H56: 28.939575 | I56: 32.07069 | J56: 36.524805 | K56: 39.65592 | L56: 43.772535 | M56: 46.90365 | N56: 44.52915 | O56: 41.02665 | P56: 35.89065 | Q56: 32.48265
A57: 46 | B57: Lot | C57: 460 | D57: 12.42315 | E57: 14.2823 | F57: 15.93895 | G57: 17.9196 | H57: 19.96275 | I57: 22.0329 | J57: 25.12905 | K57: 27.9822 | L57: 30.38985 | M57: 32.1225 | N57: 30.0585 | O57: 28.6215 | P57: 26.7795 | Q57: 26.1795
A58: 47 | B58: Lot & Garonne | C58: 470 | D58: 11.09124 | E58: 13.22498 | F58: 15.58822 | G58: 17.41146 | H58: 20.2422 | I58: 22.62744 | J58: 25.30968 | K58: 28.20792 | L58: 30.87666 | M58: 33.3969 | N58: 29.4834 | O58: 27.8439 | P58: 26.6499 | Q58: 24.7269
A59: 48 | B59: Lozère | C59: 480 | D59: 13.71915 | E59: 15.5783 | F59: 18.27445 | G59: 19.7016 | H59: 23.79675 | I59: 26.1099 | J59: 29.28705 | K59: 31.1277 | L59: 34.31835 | M59: 36.7665 | N59: 34.581 | O59: 33.684 | P59: 32.787 | Q59: 32.187
A60: 49 | B60: Maine et Loire | C60: 490 | D60: 14.489325 | E60: 16.65965 | F60: 18.829975 | G60: 21.1893 | H60: 25.177125 | I60: 27.74745 | J60: 31.546275 | K60: 34.1166 | L60: 37.577925 | M60: 40.14825 | N60: 37.880805 | O60: 34.5808725 | P60: 29.69901 | Q60: 26.49405
A61: 50 | B61: Manche | C61: 500 | D61: 17.62929 | E61: 21.02258 | F61: 25.90087 | G61: 30.77916 | H61: 34.55895 | I61: 39.08124 | J61: 43.60353 | K61: 48.15282 | L61: 52.67511 | M61: 57.1974 | N61: 55.0929 | O61: 49.4574 | P61: 44.6724 | Q61: 39.9009
A62: 51 | B62: Marne | C62: 510 | D62: 14.04418 | E62: 16.16636 | F62: 18.28854 | G62: 20.59272 | H62: 24.4799 | I62: 27.00208 | J62: 30.70726 | K62: 33.22944 | L62: 36.60962 | M62: 39.1318 | N62: 36.90389 | O62: 33.703955 | P62: 30.03368 | Q62: 26.9252
A63: 52 | B63: Haute Marne | C63: 520 | D63: 14.83803 | E63: 17.35706 | F63: 19.87609 | G63: 22.58412 | H63: 26.92065 | I63: 29.83968 | J63: 33.98721 | K63: 36.90624 | L63: 40.71627 | M63: 43.6353 | N63: 41.367855 | O63: 35.1876975 | P63: 30.305835 | Q63: 27.100875
A64: 53 | B64: Mayenne | C64: 530 | D64: 15.03 | E64: 17.741 | F64: 20.452 | G64: 23.352 | H64: 27.8805 | I64: 30.9915 | J64: 35.331 | K64: 38.442 | L64: 42.444 | M64: 45.555 | N64: 43.287555 | O64: 37.2842475 | P64: 32.402385 | Q64: 29.197425
A65: 54 | B65: Meurthe et Mos. | C65: 540 | D65: 16.65679 | E65: 19.32718 | F65: 21.99757 | G65: 24.88636 | H65: 29.59475 | I65: 32.66514 | J65: 37.15513 | K65: 40.22552 | L65: 44.32551 | M65: 47.3959 | N65: 44.962408 | O65: 37.282686 | P65: 31.945356 | Q65: 28.33518
A66: 55 | B66: Meuse | C66: 550 | D66: 17.699895 | E66: 20.40104 | F66: 23.102185 | G66: 26.03958 | H66: 30.9126 | I66: 34.013745 | J66: 38.650515 | K66: 41.75166 | L66: 45.966555 | M66: 49.0677 | N66: 46.53339375 | O66: 38.76767813 | P66: 33.088725 | Q66: 29.232525
A67: 56 | B67: Morbihan | C67: 560 | D67: 15.57891 | E67: 18.83882 | F67: 22.09873 | G67: 25.54764 | H67: 30.62505 | I67: 34.28496 | J67: 39.17337 | K67: 42.83328 | L67: 47.38419 | M67: 51.0441 | N67: 48.776655 | O67: 40.0287975 | P67: 35.146935 | Q67: 31.941975
A68: 56 ILES | B68: Morbihan ILES | C68: 562 | D68: 23.20641 | E68: 26.46632 | F68: 29.72623 | G68: 33.25614 | H68: 39.60255 | I68: 43.26246 | J68: 49.64937 | K68: 53.30928 | L68: 59.57469 | M68: 63.2346 | N68: 60.8871 | O68: 50.046675 | P68: 42.183675 | Q68: 36.345675
A69: 57 | B69: Moselle | C69: 570 | D69: 17.68899 | E69: 20.35938 | F69: 23.02977 | G69: 25.93676 | H69: 30.78165 | I69: 33.85204 | J69: 38.46033 | K69: 41.53072 | L69: 45.71651 | M69: 48.7869 | N69: 46.250617 | O69: 38.3109015 | P69: 32.666544 | Q69: 28.80552
A70: 58 | B70: Nièvre | C70: 580 | D70: 14.103495 | E70: 15.88799 | F70: 17.672485 | G70: 19.64598 | H70: 23.247975 | I70: 25.43247 | J70: 28.845465 | K70: 31.02996 | L70: 34.105455 | M70: 36.28995 | N70: 34.022505 | O70: 30.7225725 | P70: 26.93421 | Q70: 23.72925
A71: 59 | B71: Nord | C71: 590 | D71: 14.40922 | E71: 16.89644 | F71: 19.38366 | G71: 22.05288 | H71: 26.3051 | I71: 29.19232 | J71: 33.26254 | K71: 36.14976 | L71: 39.89498 | M71: 42.7822 | N71: 40.55429 | O71: 37.354355 | P71: 33.68408 | Q71: 30.5756
A72: 60 | B72: Oise | C72: 600 | D72: 22.626585 | E72: 25.43087 | F72: 28.235155 | G72: 31.36074 | H72: 36.974775 | I72: 40.17906 | J72: 45.471795 | K72: 48.67608 | L72: 53.395065 | M72: 56.59935 | N72: 53.5846935 | O72: 48.39480825 | P72: 42.374592 | Q72: 37.34616
A73: 61 | B73: Orne | C73: 610 | D73: 15.050115 | E73: 17.78123 | F73: 20.512345 | G73: 23.43246 | H73: 27.981075 | I73: 31.11219 | J73: 35.471805 | K73: 38.60292 | L73: 42.625035 | M73: 45.75615 | N73: 43.488705 | O73: 37.3848225 | P73: 32.50296 | Q73: 29.298
A74: 62 | B74: Pas de Calais | C74: 620 | D74: 14.40922 | E74: 16.89644 | F74: 19.38366 | G74: 22.05288 | H74: 26.3051 | I74: 29.19232 | J74: 33.26254 | K74: 36.14976 | L74: 39.89498 | M74: 42.7822 | N74: 40.55429 | O74: 37.354355 | P74: 33.68408 | Q74: 30.5756
A75: 63 | B75: Puy de Dôme | C75: 630 | D75: 13.96512 | E75: 15.61124 | F75: 17.25736 | G75: 19.09248 | H75: 22.5561 | I75: 24.60222 | J75: 27.87684 | K75: 29.92296 | L75: 32.86008 | M75: 34.9062 | N75: 32.638755 | O75: 29.3388225 | P75: 25.55046 | Q75: 22.3455
A76: 64 | B76: Pyrénées Atl. | C76: 640 | D76: 18.09315 | E76: 21.2483 | F76: 24.44395 | G76: 27.6261 | H76: 30.62775 | I76: 32.5764 | J76: 35.01105 | K76: 37.0812 | L76: 39.12435 | M76: 41.181 | N76: 39.981 | O76: 37.9905 | P76: 33.273 | Q76: 28.5015
A77: 65 | B77: Htes Pyrénées | C77: 650 | D77: 14.28615 | E77: 15.2408 | F77: 20.21845 | G77: 21.1731 | H77: 24.99825 | I77: 26.3529 | J77: 30.67755 | K77: 32.0322 | L77: 36.35685 | M77: 37.7115 | N77: 37.6725 | O77: 31.119 | P77: 27.144 | Q77: 26.544
A78: 66 | B78: Pyrénées Orien. | C78: 660 | D78: 12.122 | E78: 12.322 | F78: 12.522 | G78: 12.904 | H78: 14.869 | I78: 15.469 | J78: 17.252 | K78: 17.852 | L78: 19.31 | M78: 19.91 | N78: 17.68209 | O78: 14.482155 | P78: 10.81188 | Q78: 7.7034
A79: 66HM | B79: Pyrénées Orien. HM | C79: 662 | D79: 20.1465 | E79: 20.3465 | F79: 20.5465 | G79: 21.0165 | H79: 24.303 | I79: 24.903 | J79: 28.23 | K79: 28.83 | L79: 32.0355 | M79: 32.6355 | N79: 30.288 | O79: 24.8955 | P79: 18.126 | Q79: 12.288
A80: 67 | B80: Bas Rhin | C80: 670 | D80: 13.896435 | E80: 15.87087 | F80: 17.845305 | G80: 20.00174 | H80: 23.741175 | I80: 26.11561 | J80: 29.673045 | K80: 32.04748 | L80: 35.279915 | M80: 37.65435 | N80: 35.42644 | O80: 32.226505 | P80: 28.55623 | Q80: 25.44775
A81: 68 | B81: Haut Rhin | C81: 680 | D81: 13.896435 | E81: 15.87087 | F81: 17.845305 | G81: 20.00174 | H81: 23.741175 | I81: 26.11561 | J81: 29.673045 | K81: 32.04748 | L81: 35.279915 | M81: 37.65435 | N81: 35.42644 | O81: 32.226505 | P81: 28.55623 | Q81: 25.44775
A82: 69 | B82: Rhône | C82: 690 | D82: 12.88146 | E82: 13.84092 | F82: 14.80038 | G82: 15.94184 | H82: 18.6663 | I82: 20.02576 | J82: 22.56822 | K82: 23.92768 | L82: 26.14514 | M82: 27.5046 | N82: 25.27669 | O82: 22.076755 | P82: 18.40648 | Q82: 15.298
A83: 70 | B83: Haute Saone | C83: 700 | D83: 14.846535 | E83: 17.37407 | F83: 19.901605 | G83: 22.61814 | H83: 26.963175 | I83: 29.89071 | J83: 34.046745 | K83: 36.97428 | L83: 40.792815 | M83: 43.72035 | N83: 41.452905 | O83: 35.2302225 | P83: 30.34836 | Q83: 27.1434
A84: 71 | B84: Saone et Loire | C84: 710 | D84: 14.883795 | E84: 17.44859 | F84: 20.013385 | G84: 22.76718 | H84: 27.149475 | I84: 30.11427 | J84: 34.307565 | K84: 37.27236 | L84: 41.128155 | M84: 44.09295 | N84: 41.825505 | O84: 35.4165225 | P84: 30.53466 | Q84: 27.3297
A85: 72 | B85: Sarthe | C85: 720 | D85: 14.99193 | E85: 17.66486 | F85: 20.33779 | G85: 23.19972 | H85: 27.69015 | I85: 30.76308 | J85: 35.06451 | K85: 38.13744 | L85: 42.10137 | M85: 45.1743 | N85: 42.906855 | O85: 37.0938975 | P85: 32.212035 | Q85: 29.007075
A86: 73 | B86: Savoie | C86: 730 | D86: 14.539005 | E86: 16.75901 | F86: 18.979015 | G86: 21.38802 | H86: 25.425525 | I86: 28.04553 | J86: 31.894035 | K86: 34.51404 | L86: 38.025045 | M86: 40.64505 | N86: 38.377605 | O86: 32.2284975 | P86: 27.157635 | Q86: 23.952675
A87: 73HM | B87: Savoie HM | C87: 732 | D87: 22.166505 | E87: 24.38651 | F87: 26.606515 | G87: 29.09652 | H87: 34.403025 | I87: 37.02303 | J87: 42.370035 | K87: 44.99004 | L87: 50.215545 | M87: 52.83555 | N87: 50.48805 | O87: 42.246375 | P87: 34.194375 | Q87: 28.356375
A88: 74 | B88: Haute Savoie | C88: 740 | D88: 14.617845 | E88: 16.91669 | F88: 19.215535 | G88: 21.70338 | H88: 25.819725 | I88: 28.51857 | J88: 32.445915 | K88: 35.14476 | L88: 38.734605 | M88: 41.43345 | N88: 39.166005 | O88: 32.6226975 | P88: 27.551835 | Q88: 24.346875
A89: 74HM | B89: Haute Savoie HM | C89: 742 | D89: 22.245345 | E89: 24.54419 | F89: 26.843035 | G89: 29.41188 | H89: 34.797225 | I89: 37.49607 | J89: 42.921915 | K89: 45.62076 | L89: 50.925105 | M89: 53.62395 | N89: 51.27645 | O89: 42.640575 | P89: 34.588575 | Q89: 28.750575
A90: 75 | B90: Paris | C90: 750 | D90: 21.30442 | E90: 23.46144 | F90: 25.61846 | G90: 28.08488 | H90: 32.9624 | I90: 35.51942 | J90: 40.08754 | K90: 42.64456 | L90: 46.66018 | M90: 49.2172 | N90: 46.269753 | O90: 41.2498635 | P90: 35.430396 | Q90: 30.56598
A91: 76 | B91: Seine-Maritime | C91: 760 | D91: 15.80409 | E91: 20.53118 | F91: 26.41927 | G91: 31.67286 | H91: 36.09795 | I91: 41.37354 | J91: 45.79863 | K91: 51.38472 | L91: 55.80981 | M91: 61.5309 | N91: 58.1709 | O91: 53.3184 | P91: 44.6049 | Q91: 44.0049
A92: 77 | B92: Seine et Marne | C92: 770 | D92: 22.05459 | E92: 24.28688 | F92: 26.51917 | G92: 29.07276 | H92: 34.1148 | I92: 36.74709 | J92: 41.46783 | K92: 44.10012 | L92: 48.24711 | M92: 50.8794 | N92: 47.8647435 | O92: 42.67485825 | P92: 36.654642 | Q92: 31.62621
A93: 78 | B93: Yvelines | C93: 780 | D93: 20.70216 | E93: 23.83382 | F93: 26.96548 | G93: 32.70264 | H93: 36.2343 | I93: 40.31946 | J93: 43.85112 | K93: 47.38278 | L93: 52.89894 | M93: 56.4306 | N93: 55.8381 | O93: 49.312275 | P93: 36.683775 | Q93: 36.083775
A94: 79 | B94: Deux Sévres | C94: 790 | D94: 16.326405 | E94: 19.15931 | F94: 21.992215 | G94: 25.05462 | H94: 29.853525 | I94: 33.08643 | J94: 37.682835 | K94: 40.91574 | L94: 45.147645 | M94: 48.38055 | N94: 45.97905 | O94: 42.39555 | P94: 37.13805 | Q94: 33.68955
A95: 80 | B95: Somme | C95: 800 | D95: 14.94508 | E95: 17.96816 | F95: 20.99124 | G95: 24.19632 | H95: 28.9844 | I95: 32.40748 | J95: 37.01356 | K95: 40.43664 | L95: 44.71772 | M95: 48.1408 | N95: 45.91289 | O95: 42.712955 | P95: 39.04268 | Q95: 35.9342
A96: 81 | B96: Tarn | C96: 810 | D96: 13.94055 | E96: 14.4902 | F96: 15.03985 | G96: 15.7974 | H96: 18.3063 | I96: 19.25595 | J96: 21.55695 | K96: 22.5066 | L96: 24.43635 | M96: 25.386 | N96: 23.0118105 | O96: 19.44188475 | P96: 15.334686 | Q96: 11.86923
A97: 82 | B97: Tarn & Garonne | C97: 820 | D97: 13.94055 | E97: 14.4902 | F97: 15.03985 | G97: 15.7974 | H97: 18.3063 | I97: 19.25595 | J97: 21.55695 | K97: 22.5066 | L97: 24.43635 | M97: 25.386 | N97: 23.0118105 | O97: 19.44188475 | P97: 15.334686 | Q97: 11.86923
A98: 83 | B98: Var | C98: 830 | D98: 13.63247 | E98: 15.47294 | F98: 17.56041 | G98: 19.19288 | H98: 21.70635 | I98: 23.66082 | J98: 25.64129 | K98: 27.89476 | L98: 31.03223 | M98: 33.8447 | N98: 30.678645 | O98: 28.341 | P98: 24.81444 | Q98: 22.032585
A99: 83 HM | B99: Var HM | C99: 832 | D99: 29.194065 | E99: 33.04163 | F99: 38.293195 | G99: 41.19576 | H99: 44.943825 | I99: 48.40839 | J99: 51.926955 | K99: 55.93152 | L99: 59.598585 | M99: 63.61665 | N99: 55.68015 | O99: 47.35815 | P99: 40.95315 | Q99: 34.99365
A100: 84 | B100: Vaucluse | C100: 840 | D100: 12.63771 | E100: 13.35342 | F100: 14.06913 | G100: 14.96684 | H100: 17.44755 | I100: 18.56326 | J100: 20.86197 | K100: 21.97768 | L100: 23.95139 | M100: 25.0671 | N100: 22.83919 | O100: 19.639255 | P100: 15.96898 | Q100: 12.8605
A101: 85 | B101: Vendée | C101: 850 | D101: 15.251805 | E101: 18.18461 | F101: 21.117415 | G101: 24.23922 | H101: 28.989525 | I101: 32.32233 | J101: 36.883635 | K101: 40.21644 | L101: 44.440245 | M101: 47.77305 | N101: 45.505605 | O101: 38.3932725 | P101: 33.51141 | Q101: 30.30645
A102: 85 ILES | B102: Vendée ILES | C102: 852 | D102: 22.879305 | E102: 25.81211 | F102: 28.744915 | G102: 31.94772 | H102: 37.967025 | I102: 41.29983 | J102: 47.359635 | K102: 50.69244 | L102: 56.630745 | M102: 59.96355 | N102: 57.61605 | O102: 48.41115 | P102: 40.54815 | Q102: 34.71015
A103: 86 | B103: Vienne | C103: 860 | D103: 15.050115 | E103: 17.78123 | F103: 20.512345 | G103: 23.43246 | H103: 27.981075 | I103: 31.11219 | J103: 35.471805 | K103: 38.60292 | L103: 42.625035 | M103: 45.75615 | N103: 43.488705 | O103: 37.3848225 | P103: 32.50296 | Q103: 29.298
A104: 87 | B104: Haute Vienne | C104: 870 | D104: 15.23682 | E104: 18.15464 | F104: 21.07246 | G104: 24.17928 | H104: 28.9146 | I104: 32.23242 | J104: 36.77874 | K104: 40.09656 | L104: 44.30538 | M104: 47.6232 | N104: 45.355755 | O104: 38.3183475 | P104: 33.436485 | Q104: 30.231525
A105: 88 | B105: Vosges | C105: 880 | D105: 14.979105 | E105: 17.63921 | F105: 20.299315 | G105: 23.14842 | H105: 27.626025 | I105: 30.68613 | J105: 34.974735 | K105: 38.03484 | L105: 41.985945 | M105: 45.04605 | N105: 42.778605 | O105: 35.8930725 | P105: 31.01121 | Q105: 27.80625
A106: 89 | B106: Yonne | C106: 890 | D106: 14.930235 | E106: 17.54147 | F106: 20.152705 | G106: 22.95294 | H106: 27.381675 | I106: 30.39291 | J106: 34.632645 | K106: 37.64388 | L106: 41.546115 | M106: 44.55735 | N106: 42.289905 | O106: 35.6662725 | P106: 30.78441 | Q106: 27.57945
A107: 90 | B107: Terr. de Belfort | C107: 900 | D107: 14.96169 | E107: 17.60438 | F107: 20.24707 | G107: 23.07876 | H107: 27.53895 | I107: 30.58164 | J107: 34.85283 | K107: 37.89552 | L107: 41.82921 | M107: 44.8719 | N107: 42.604455 | O107: 35.8235475 | P107: 30.941685 | Q107: 27.736725
A108: 91 | B108: Essonnes | C108: 910 | D108: 20.70702 | E108: 23.84354 | F108: 26.98006 | G108: 32.72208 | H108: 36.2586 | I108: 40.34862 | J108: 43.88514 | K108: 47.42166 | L108: 52.94268 | M108: 56.4792 | N108: 55.8867 | O108: 55.2867 | P108: 43.7517 | Q108: 43.1517
A109: 92 | B109: Hauts de Seine | C109: 920 | D109: 22.05459 | E109: 24.28688 | F109: 26.51917 | G109: 29.07276 | H109: 34.1148 | I109: 36.74709 | J109: 41.46783 | K109: 44.10012 | L109: 48.24711 | M109: 50.8794 | N109: 47.8647435 | O109: 42.67485825 | P109: 36.654642 | Q109: 31.62621
A110: 93 | B110: Seine St Denis | C110: 930 | D110: 22.05459 | E110: 24.28688 | F110: 26.51917 | G110: 29.07276 | H110: 34.1148 | I110: 36.74709 | J110: 41.46783 | K110: 44.10012 | L110: 48.24711 | M110: 50.8794 | N110: 47.8647435 | O110: 42.67485825 | P110: 36.654642 | Q110: 31.62621
A111: 94 | B111: Val de Marne | C111: 940 | D111: 22.05459 | E111: 24.28688 | F111: 26.51917 | G111: 29.07276 | H111: 34.1148 | I111: 36.74709 | J111: 41.46783 | K111: 44.10012 | L111: 48.24711 | M111: 50.8794 | N111: 47.8647435 | O111: 42.67485825 | P111: 36.654642 | Q111: 31.62621
A112: 95 | B112: Val d'Oise | C112: 950 | D112: 17.17562 | E112: 19.33264 | F112: 21.48966 | G112: 23.88328 | H112: 28.2148 | I112: 30.77182 | J112: 34.86674 | K112: 37.42376 | L112: 41.09618 | M112: 43.6532 | N112: 41.116917 | O112: 37.1370015 | P112: 32.545644 | Q112: 28.68462
B114: Conditions tarifaires : Voir conditions générales de vente
B115: Droit fixe inclus
B116: Contribution ECOSUR : 0,50€ par envoi
